﻿Department Family,Entity,Date,Expense Type,Expense Area,Supplier,SME,Transaction Number, Amount ,Description,Expenditure Type
HM Land Registry,HM Land Registry,12/10/2017,Stationery National Contracts,Registration Legal Services Group,Banner Group Limited,Large,1194395,10.03,Stationery,Administration
HM Land Registry,HM Land Registry,12/10/2017,Stationery National Contracts,Finance Group,Banner Group Limited,Large,1194395,89.77,Stationery,Administration
HM Land Registry,HM Land Registry,12/10/2017,Stationery National Contracts,Chief Executives Office,Banner Group Limited,Large,1194395,102.54,Stationery,Administration
HM Land Registry,HM Land Registry,12/10/2017,Stationery National Contracts,Central Operations Group,Banner Group Limited,Large,1194395,109.35,Stationery,Administration
HM Land Registry,HM Land Registry,12/10/2017,Stationery National Contracts,Coventry Office,Banner Group Limited,Large,1194395,260.74,Stationery,Administration
HM Land Registry,HM Land Registry,12/10/2017,Stationery National Contracts,Land Charges,Banner Group Limited,Large,1194395,282.31,Stationery,Administration
HM Land Registry,HM Land Registry,12/10/2017,Stationery National Contracts,Telford Office,Banner Group Limited,Large,1194395,369,Stationery,Administration
HM Land Registry,HM Land Registry,12/10/2017,Stationery National Contracts,Leicester Office,Banner Group Limited,Large,1194395,476.08,Stationery,Administration
HM Land Registry,HM Land Registry,12/10/2017,Stationery National Contracts,Weymouth Office,Banner Group Limited,Large,1194395,599.35,Stationery,Administration
HM Land Registry,HM Land Registry,12/10/2017,Stationery National Contracts,Director of Information Systems,Banner Group Limited,Large,1194395,711.1,Stationery,Administration
HM Land Registry,HM Land Registry,12/10/2017,Stationery National Contracts,Plymouth Office,Banner Group Limited,Large,1194395,827.28,Stationery,Administration
HM Land Registry,HM Land Registry,12/10/2017,Stationery National Contracts,Nottingham Office,Banner Group Limited,Large,1194395,835.48,Stationery,Administration
HM Land Registry,HM Land Registry,12/10/2017,Stationery National Contracts,Peterborough Office,Banner Group Limited,Large,1194395,869.49,Stationery,Administration
HM Land Registry,HM Land Registry,12/10/2017,Stationery National Contracts,Croydon Office,Banner Group Limited,Large,1194395,896,Stationery,Administration
HM Land Registry,HM Land Registry,12/10/2017,Stationery National Contracts,Gloucester Office,Banner Group Limited,Large,1194395,897.25,Stationery,Administration
HM Land Registry,HM Land Registry,12/10/2017,Stationery National Contracts,Fylde Office,Banner Group Limited,Large,1194395,"1,396.62",Stationery,Administration
HM Land Registry,HM Land Registry,12/10/2017,Stationery National Contracts,Birkenhead Office,Banner Group Limited,Large,1194395,"1,767.14",Stationery,Administration
HM Land Registry,HM Land Registry,12/10/2017,Stationery National Contracts,Hull Office,Banner Group Limited,Large,1194395,"1,940.44",Stationery,Administration
HM Land Registry,HM Land Registry,12/10/2017,Stationery National Contracts,Durham Office,Banner Group Limited,Large,1194395,"2,537.59",Stationery,Administration
HM Land Registry,HM Land Registry,12/10/2017,Stationery National Contracts,Wales Office,Banner Group Limited,Large,1194395,"4,078.30",Stationery,Administration
HM Land Registry,HM Land Registry,12/10/2017,Stationery National Contracts,IS Service Delivery,Banner Group Limited,Large,1194395,"6,251.94",Stationery,Administration
HM Land Registry,HM Land Registry,31/10/2017,Data Network Lines,IS Service Delivery,British Telecommunications Plc,Large,1196032,"2,214.10",Data Network Lines,Administration
HM Land Registry,HM Land Registry,31/10/2017,Telephone Costs,IS Service Delivery,British Telecommunications Plc,Large,1196032,"132,179.05",Telephone Costs,Administration
HM Land Registry,HM Land Registry,30/10/2017,Water,Nottingham Office,Carillion Services Ltd,Large,1196024,"-5,871.86",Water,Administration
HM Land Registry,HM Land Registry,20/10/2017,Facilities - Core Fee,Central Facilities Management Team,Carillion Services Ltd,Large,1195269,"-2,037.59",Facilities - Core Fee,Administration
HM Land Registry,HM Land Registry,30/10/2017,Facilities - Core Fee,Central Facilities Management Team,Carillion Services Ltd,Large,1196025,-354.13,Facilities - Core Fee,Administration
HM Land Registry,HM Land Registry,20/10/2017,Vending Machine Consumables & Repairs,Gloucester Computer Centre,Carillion Services Ltd,Large,1195269,18.98,Vending Machine Consumables & Repairs,Administration
HM Land Registry,HM Land Registry,30/10/2017,Vending Machine Consumables & Repairs,Gloucester Computer Centre,Carillion Services Ltd,Large,1196025,18.98,Vending Machine Consumables & Repairs,Administration
HM Land Registry,HM Land Registry,20/10/2017,Security Expenses,Birkenhead Office,Carillion Services Ltd,Large,1195271,21.36,Security Expenses,Administration
HM Land Registry,HM Land Registry,30/10/2017,Security Expenses,Hull Office,Carillion Services Ltd,Large,1196027,22.08,Security Expenses,Administration
HM Land Registry,HM Land Registry,30/10/2017,Gas,Gloucester Computer Centre,Carillion Services Ltd,Large,1196024,22.59,Gas,Administration
HM Land Registry,HM Land Registry,20/10/2017,Pest Control,Gloucester Computer Centre,Carillion Services Ltd,Large,1195269,26.68,Pest Control,Administration
HM Land Registry,HM Land Registry,30/10/2017,Pest Control,Gloucester Computer Centre,Carillion Services Ltd,Large,1196025,26.68,Pest Control,Administration
HM Land Registry,HM Land Registry,20/10/2017,Pest Control,Fylde Office,Carillion Services Ltd,Large,1195269,36.9,Pest Control,Administration
HM Land Registry,HM Land Registry,20/10/2017,Pest Control,Leicester Office,Carillion Services Ltd,Large,1195269,36.9,Pest Control,Administration
HM Land Registry,HM Land Registry,30/10/2017,Pest Control,Fylde Office,Carillion Services Ltd,Large,1196025,36.9,Pest Control,Administration
HM Land Registry,HM Land Registry,30/10/2017,Pest Control,Leicester Office,Carillion Services Ltd,Large,1196025,36.9,Pest Control,Administration
HM Land Registry,HM Land Registry,20/10/2017,Pest Control,Croydon Office,Carillion Services Ltd,Large,1195269,37.48,Pest Control,Administration
HM Land Registry,HM Land Registry,30/10/2017,Pest Control,Croydon Office,Carillion Services Ltd,Large,1196025,37.48,Pest Control,Administration
HM Land Registry,HM Land Registry,30/10/2017,Pest Control,Peterborough Office,Carillion Services Ltd,Large,1196025,38.33,Pest Control,Administration
HM Land Registry,HM Land Registry,20/10/2017,Pest Control,Peterborough Office,Carillion Services Ltd,Large,1195269,38.38,Pest Control,Administration
HM Land Registry,HM Land Registry,20/10/2017,Pest Control,Birkenhead Office,Carillion Services Ltd,Large,1195269,39.03,Pest Control,Administration
HM Land Registry,HM Land Registry,20/10/2017,Pest Control,Weymouth Office,Carillion Services Ltd,Large,1195269,39.03,Pest Control,Administration
HM Land Registry,HM Land Registry,30/10/2017,Pest Control,Birkenhead Office,Carillion Services Ltd,Large,1196025,39.03,Pest Control,Administration
HM Land Registry,HM Land Registry,30/10/2017,Pest Control,Weymouth Office,Carillion Services Ltd,Large,1196025,39.03,Pest Control,Administration
HM Land Registry,HM Land Registry,20/10/2017,Vending Machine Consumables & Repairs,Durham Office,Carillion Services Ltd,Large,1195269,41.73,Vending Machine Consumables & Repairs,Administration
HM Land Registry,HM Land Registry,30/10/2017,Vending Machine Consumables & Repairs,Durham Office,Carillion Services Ltd,Large,1196025,41.73,Vending Machine Consumables & Repairs,Administration
HM Land Registry,HM Land Registry,20/10/2017,Pest Control,Telford Office,Carillion Services Ltd,Large,1195269,41.9,Pest Control,Administration
HM Land Registry,HM Land Registry,30/10/2017,Pest Control,Telford Office,Carillion Services Ltd,Large,1196025,41.9,Pest Control,Administration
HM Land Registry,HM Land Registry,20/10/2017,Waste Disposal,Gloucester Computer Centre,Carillion Services Ltd,Large,1195269,43.62,Waste Disposal,Administration
HM Land Registry,HM Land Registry,30/10/2017,Waste Disposal,Gloucester Computer Centre,Carillion Services Ltd,Large,1196025,43.62,Waste Disposal,Administration
HM Land Registry,HM Land Registry,20/10/2017,Pest Control,Hull Office,Carillion Services Ltd,Large,1195269,46.64,Pest Control,Administration
HM Land Registry,HM Land Registry,30/10/2017,Pest Control,Hull Office,Carillion Services Ltd,Large,1196025,46.64,Pest Control,Administration
HM Land Registry,HM Land Registry,20/10/2017,Waste Disposal,Fylde Office,Carillion Services Ltd,Large,1195271,62.25,Waste Disposal,Administration
HM Land Registry,HM Land Registry,30/10/2017,Waste Disposal,Fylde Office,Carillion Services Ltd,Large,1196027,62.25,Waste Disposal,Administration
HM Land Registry,HM Land Registry,20/10/2017,Pest Control,Durham Office,Carillion Services Ltd,Large,1195269,68.46,Pest Control,Administration
HM Land Registry,HM Land Registry,30/10/2017,Pest Control,Durham Office,Carillion Services Ltd,Large,1196025,68.46,Pest Control,Administration
HM Land Registry,HM Land Registry,20/10/2017,Pest Control,Gloucester Office,Carillion Services Ltd,Large,1195269,73.36,Pest Control,Administration
HM Land Registry,HM Land Registry,30/10/2017,Pest Control,Gloucester Office,Carillion Services Ltd,Large,1196025,73.36,Pest Control,Administration
HM Land Registry,HM Land Registry,20/10/2017,Gas,Leicester Office,Carillion Services Ltd,Large,1195270,88.25,Gas,Administration
HM Land Registry,HM Land Registry,20/10/2017,Grounds Maintenance,Gloucester Computer Centre,Carillion Services Ltd,Large,1195269,90.42,Grounds Maintenance,Administration
HM Land Registry,HM Land Registry,30/10/2017,Grounds Maintenance,Gloucester Computer Centre,Carillion Services Ltd,Large,1196025,90.42,Grounds Maintenance,Administration
HM Land Registry,HM Land Registry,20/10/2017,"FF&F:Purchases <£1,000",Plymouth Office,Carillion Services Ltd,Large,1195271,90.59,"Furniture, Fixtures & Fittings: Purchases less than £1,000.00",Administration
HM Land Registry,HM Land Registry,20/10/2017,Pest Control,Wales Office,Carillion Services Ltd,Large,1195269,90.99,Pest Control,Administration
HM Land Registry,HM Land Registry,30/10/2017,Pest Control,Wales Office,Carillion Services Ltd,Large,1196025,90.99,Pest Control,Administration
HM Land Registry,HM Land Registry,20/10/2017,Vending Machine Consumables & Repairs,Weymouth Office,Carillion Services Ltd,Large,1195269,106.37,Vending Machine Consumables & Repairs,Administration
HM Land Registry,HM Land Registry,30/10/2017,Vending Machine Consumables & Repairs,Weymouth Office,Carillion Services Ltd,Large,1196025,106.37,Vending Machine Consumables & Repairs,Administration
HM Land Registry,HM Land Registry,20/10/2017,Security Expenses,Fylde Office,Carillion Services Ltd,Large,1195271,106.79,Security Expenses,Administration
HM Land Registry,HM Land Registry,30/10/2017,Waste Disposal,Croydon Office,Carillion Services Ltd,Large,1196027,106.79,Waste Disposal,Administration
HM Land Registry,HM Land Registry,20/10/2017,Vending Machine Consumables & Repairs,Leicester Office,Carillion Services Ltd,Large,1195269,109.81,Vending Machine Consumables & Repairs,Administration
HM Land Registry,HM Land Registry,30/10/2017,Vending Machine Consumables & Repairs,Leicester Office,Carillion Services Ltd,Large,1196025,109.81,Vending Machine Consumables & Repairs,Administration
HM Land Registry,HM Land Registry,20/10/2017,Security Expenses,Durham Office,Carillion Services Ltd,Large,1195271,110.42,Security Expenses,Administration
HM Land Registry,HM Land Registry,30/10/2017,"FF&F:Purchases <£1,000",Gloucester Office,Carillion Services Ltd,Large,1196027,113.78,"Furniture, Fixtures & Fittings: Purchases less than £1,000.00",Administration
HM Land Registry,HM Land Registry,20/10/2017,Office Cleaning Expenses,Gloucester Computer Centre,Carillion Services Ltd,Large,1195269,114.67,Office Cleaning Expenses,Administration
HM Land Registry,HM Land Registry,30/10/2017,Office Cleaning Expenses,Gloucester Computer Centre,Carillion Services Ltd,Large,1196025,114.67,Office Cleaning Expenses,Administration
HM Land Registry,HM Land Registry,20/10/2017,Vending Machine Consumables & Repairs,Nottingham Office,Carillion Services Ltd,Large,1195269,122.74,Vending Machine Consumables & Repairs,Administration
HM Land Registry,HM Land Registry,30/10/2017,Vending Machine Consumables & Repairs,Nottingham Office,Carillion Services Ltd,Large,1196025,122.74,Vending Machine Consumables & Repairs,Administration
HM Land Registry,HM Land Registry,20/10/2017,Pest Control,Nottingham Office,Carillion Services Ltd,Large,1195269,126.01,Pest Control,Administration
HM Land Registry,HM Land Registry,30/10/2017,Pest Control,Nottingham Office,Carillion Services Ltd,Large,1196025,126.01,Pest Control,Administration
HM Land Registry,HM Land Registry,20/10/2017,Grounds Maintenance,Leicester Office,Carillion Services Ltd,Large,1195269,128.71,Grounds Maintenance,Administration
HM Land Registry,HM Land Registry,30/10/2017,Grounds Maintenance,Leicester Office,Carillion Services Ltd,Large,1196025,128.71,Grounds Maintenance,Administration
HM Land Registry,HM Land Registry,20/10/2017,Pest Control,Director of Information Systems,Carillion Services Ltd,Large,1195269,134.28,Pest Control,Administration
HM Land Registry,HM Land Registry,30/10/2017,Pest Control,Director of Information Systems,Carillion Services Ltd,Large,1196025,134.28,Pest Control,Administration
HM Land Registry,HM Land Registry,20/10/2017,Vending Machine Consumables & Repairs,Gloucester Office,Carillion Services Ltd,Large,1195269,136.49,Vending Machine Consumables & Repairs,Administration
HM Land Registry,HM Land Registry,30/10/2017,Vending Machine Consumables & Repairs,Gloucester Office,Carillion Services Ltd,Large,1196025,136.49,Vending Machine Consumables & Repairs,Administration
HM Land Registry,HM Land Registry,20/10/2017,Gas,Gloucester Computer Centre,Carillion Services Ltd,Large,1195270,145.87,Gas,Administration
HM Land Registry,HM Land Registry,20/10/2017,Vending Machine Consumables & Repairs,Fylde Office,Carillion Services Ltd,Large,1195269,148.92,Vending Machine Consumables & Repairs,Administration
HM Land Registry,HM Land Registry,30/10/2017,Vending Machine Consumables & Repairs,Fylde Office,Carillion Services Ltd,Large,1196025,148.92,Vending Machine Consumables & Repairs,Administration
HM Land Registry,HM Land Registry,30/10/2017,Pest Control,Birkenhead Office,Carillion Services Ltd,Large,1196027,149.8,Pest Control,Administration
HM Land Registry,HM Land Registry,30/10/2017,Grounds Maintenance,Birkenhead Office,Carillion Services Ltd,Large,1196027,157.83,Grounds Maintenance,Administration
HM Land Registry,HM Land Registry,20/10/2017,Waste Disposal,Hull Office,Carillion Services Ltd,Large,1195269,179.44,Waste Disposal,Administration
HM Land Registry,HM Land Registry,30/10/2017,Waste Disposal,Hull Office,Carillion Services Ltd,Large,1196025,179.44,Waste Disposal,Administration
HM Land Registry,HM Land Registry,20/10/2017,Waste Disposal,Hull Office,Carillion Services Ltd,Large,1195271,183.45,Waste Disposal,Administration
HM Land Registry,HM Land Registry,30/10/2017,Waste Disposal,Durham Office,Carillion Services Ltd,Large,1196027,183.45,Waste Disposal,Administration
HM Land Registry,HM Land Registry,20/10/2017,Vending Machine Consumables & Repairs,Wales Office,Carillion Services Ltd,Large,1195269,183.78,Vending Machine Consumables & Repairs,Administration
HM Land Registry,HM Land Registry,30/10/2017,Vending Machine Consumables & Repairs,Wales Office,Carillion Services Ltd,Large,1196025,183.78,Vending Machine Consumables & Repairs,Administration
HM Land Registry,HM Land Registry,30/10/2017,Waste Disposal,Peterborough Office,Carillion Services Ltd,Large,1196027,183.93,Waste Disposal,Administration
HM Land Registry,HM Land Registry,20/10/2017,Vending Machine Consumables & Repairs,Telford Office,Carillion Services Ltd,Large,1195269,187.46,Vending Machine Consumables & Repairs,Administration
HM Land Registry,HM Land Registry,30/10/2017,Vending Machine Consumables & Repairs,Telford Office,Carillion Services Ltd,Large,1196025,187.46,Vending Machine Consumables & Repairs,Administration
HM Land Registry,HM Land Registry,20/10/2017,Pest Control,Hull Office,Carillion Services Ltd,Large,1195271,189.69,Pest Control,Administration
HM Land Registry,HM Land Registry,30/10/2017,Pest Control,Fylde Office,Carillion Services Ltd,Large,1196027,189.69,Pest Control,Administration
HM Land Registry,HM Land Registry,30/10/2017,"FF&F:Purchases <£1,000",Wales Office,Carillion Services Ltd,Large,1196027,190.24,"Furniture, Fixtures & Fittings: Purchases less than £1,000.00",Administration
HM Land Registry,HM Land Registry,20/10/2017,Waste Disposal,Croydon Office,Carillion Services Ltd,Large,1195269,200.7,Waste Disposal,Administration
HM Land Registry,HM Land Registry,30/10/2017,Waste Disposal,Croydon Office,Carillion Services Ltd,Large,1196025,200.7,Waste Disposal,Administration
HM Land Registry,HM Land Registry,20/10/2017,Vending Machine Consumables & Repairs,Director of Information Systems,Carillion Services Ltd,Large,1195269,206.36,Vending Machine Consumables & Repairs,Administration
HM Land Registry,HM Land Registry,30/10/2017,Vending Machine Consumables & Repairs,Director of Information Systems,Carillion Services Ltd,Large,1196025,206.36,Vending Machine Consumables & Repairs,Administration
HM Land Registry,HM Land Registry,20/10/2017,Gas,Nottingham Office,Carillion Services Ltd,Large,1195270,206.51,Gas,Administration
HM Land Registry,HM Land Registry,30/10/2017,Gas,Nottingham Office,Carillion Services Ltd,Large,1196024,206.88,Gas,Administration
HM Land Registry,HM Land Registry,20/10/2017,Vending Machine Consumables & Repairs,Croydon Office,Carillion Services Ltd,Large,1195269,211.93,Vending Machine Consumables & Repairs,Administration
HM Land Registry,HM Land Registry,30/10/2017,Vending Machine Consumables & Repairs,Croydon Office,Carillion Services Ltd,Large,1196025,211.93,Vending Machine Consumables & Repairs,Administration
HM Land Registry,HM Land Registry,20/10/2017,FF&F:Removals,Birkenhead Office,Carillion Services Ltd,Large,1195271,228.38,"Furniture, Fixtures & Fittings: Removals",Administration
HM Land Registry,HM Land Registry,20/10/2017,Waste Disposal,Telford Office,Carillion Services Ltd,Large,1195269,229.52,Waste Disposal,Administration
HM Land Registry,HM Land Registry,30/10/2017,Waste Disposal,Telford Office,Carillion Services Ltd,Large,1196025,229.52,Waste Disposal,Administration
HM Land Registry,HM Land Registry,20/10/2017,Waste Disposal,Leicester Office,Carillion Services Ltd,Large,1195271,234.28,Waste Disposal,Administration
HM Land Registry,HM Land Registry,20/10/2017,Waste Disposal,Gloucester Office,Carillion Services Ltd,Large,1195269,237.87,Waste Disposal,Administration
HM Land Registry,HM Land Registry,30/10/2017,Waste Disposal,Gloucester Office,Carillion Services Ltd,Large,1196025,237.87,Waste Disposal,Administration
HM Land Registry,HM Land Registry,30/10/2017,Waste Disposal,Plymouth Office,Carillion Services Ltd,Large,1196027,240.36,Waste Disposal,Administration
HM Land Registry,HM Land Registry,20/10/2017,Waste Disposal,Peterborough Office,Carillion Services Ltd,Large,1195271,244.48,Waste Disposal,Administration
HM Land Registry,HM Land Registry,20/10/2017,Waste Disposal,Fylde Office,Carillion Services Ltd,Large,1195269,245.64,Waste Disposal,Administration
HM Land Registry,HM Land Registry,30/10/2017,Waste Disposal,Fylde Office,Carillion Services Ltd,Large,1196025,245.64,Waste Disposal,Administration
HM Land Registry,HM Land Registry,20/10/2017,"FF&F:Purchases <£1,000",Nottingham Office,Carillion Services Ltd,Large,1195271,255.03,"Furniture, Fixtures & Fittings: Purchases less than £1,000.00",Administration
HM Land Registry,HM Land Registry,30/10/2017,Pest Control,Durham Office,Carillion Services Ltd,Large,1196027,256.91,Pest Control,Administration
HM Land Registry,HM Land Registry,20/10/2017,Waste Disposal,Leicester Office,Carillion Services Ltd,Large,1195269,259.55,Waste Disposal,Administration
HM Land Registry,HM Land Registry,30/10/2017,Waste Disposal,Leicester Office,Carillion Services Ltd,Large,1196025,259.55,Waste Disposal,Administration
HM Land Registry,HM Land Registry,20/10/2017,Security Expenses,Nottingham Office,Carillion Services Ltd,Large,1195271,270.54,Security Expenses,Administration
HM Land Registry,HM Land Registry,20/10/2017,Waste Disposal,Birkenhead Office,Carillion Services Ltd,Large,1195269,274.12,Waste Disposal,Administration
HM Land Registry,HM Land Registry,30/10/2017,Waste Disposal,Birkenhead Office,Carillion Services Ltd,Large,1196025,274.12,Waste Disposal,Administration
HM Land Registry,HM Land Registry,20/10/2017,Gas,Wales Office,Carillion Services Ltd,Large,1195270,282.27,Gas,Administration
HM Land Registry,HM Land Registry,20/10/2017,FF&F:Removals,Wales Office,Carillion Services Ltd,Large,1195271,285.48,"Furniture, Fixtures & Fittings: Removals",Administration
HM Land Registry,HM Land Registry,20/10/2017,Waste Disposal,Weymouth Office,Carillion Services Ltd,Large,1195269,296.48,Waste Disposal,Administration
HM Land Registry,HM Land Registry,30/10/2017,Waste Disposal,Weymouth Office,Carillion Services Ltd,Large,1196025,296.48,Waste Disposal,Administration
HM Land Registry,HM Land Registry,30/10/2017,Household Expenses Services,Director of Information Systems,Carillion Services Ltd,Large,1196027,303.06,Household Expenses Services,Administration
HM Land Registry,HM Land Registry,20/10/2017,Grounds Maintenance,Nottingham Office,Carillion Services Ltd,Large,1195269,310,Grounds Maintenance,Administration
HM Land Registry,HM Land Registry,30/10/2017,Grounds Maintenance,Nottingham Office,Carillion Services Ltd,Large,1196025,310,Grounds Maintenance,Administration
HM Land Registry,HM Land Registry,20/10/2017,"FF&F:Purchases <£1,000",Leicester Office,Carillion Services Ltd,Large,1195271,313.18,"Furniture, Fixtures & Fittings: Purchases less than £1,000.00",Administration
HM Land Registry,HM Land Registry,20/10/2017,Waste Disposal,Durham Office,Carillion Services Ltd,Large,1195269,319.12,Waste Disposal,Administration
HM Land Registry,HM Land Registry,20/10/2017,Waste Disposal,Nottingham Office,Carillion Services Ltd,Large,1195269,319.12,Waste Disposal,Administration
HM Land Registry,HM Land Registry,30/10/2017,Waste Disposal,Durham Office,Carillion Services Ltd,Large,1196025,319.12,Waste Disposal,Administration
HM Land Registry,HM Land Registry,30/10/2017,Waste Disposal,Nottingham Office,Carillion Services Ltd,Large,1196025,319.12,Waste Disposal,Administration
HM Land Registry,HM Land Registry,20/10/2017,Vending Machine Consumables & Repairs,Hull Office,Carillion Services Ltd,Large,1195269,328.29,Vending Machine Consumables & Repairs,Administration
HM Land Registry,HM Land Registry,30/10/2017,Vending Machine Consumables & Repairs,Hull Office,Carillion Services Ltd,Large,1196025,328.29,Vending Machine Consumables & Repairs,Administration
HM Land Registry,HM Land Registry,20/10/2017,Grounds Maintenance,Birkenhead Office,Carillion Services Ltd,Large,1195269,341.57,Grounds Maintenance,Administration
HM Land Registry,HM Land Registry,30/10/2017,Grounds Maintenance,Birkenhead Office,Carillion Services Ltd,Large,1196025,341.57,Grounds Maintenance,Administration
HM Land Registry,HM Land Registry,30/10/2017,Gas,Durham Office,Carillion Services Ltd,Large,1196024,353.24,Gas,Administration
HM Land Registry,HM Land Registry,30/10/2017,Pest Control,Gloucester Office,Carillion Services Ltd,Large,1196027,367.01,Pest Control,Administration
HM Land Registry,HM Land Registry,30/10/2017,Waste Disposal,Weymouth Office,Carillion Services Ltd,Large,1196027,367.26,Waste Disposal,Administration
HM Land Registry,HM Land Registry,20/10/2017,Waste Disposal,Gloucester Office,Carillion Services Ltd,Large,1195271,380.98,Waste Disposal,Administration
HM Land Registry,HM Land Registry,20/10/2017,Gas,Durham Office,Carillion Services Ltd,Large,1195270,387.73,Gas,Administration
HM Land Registry,HM Land Registry,20/10/2017,FM Ext Helpdesk,Weymouth Office,Carillion Services Ltd,Large,1195269,396.5,Facilities External Helpdesk,Administration
HM Land Registry,HM Land Registry,30/10/2017,FM Ext Helpdesk,Weymouth Office,Carillion Services Ltd,Large,1196025,396.5,Facilities External Helpdesk,Administration
HM Land Registry,HM Land Registry,30/10/2017,Waste Disposal,Hull Office,Carillion Services Ltd,Large,1196027,417.73,Waste Disposal,Administration
HM Land Registry,HM Land Registry,20/10/2017,"Property Management; Advice, Surveys & Inspections",Gloucester Office,Carillion Services Ltd,Large,1195271,421.31,"Property Management; Advice, Surveys and Inspections",Administration
HM Land Registry,HM Land Registry,30/10/2017,Gas,Birkenhead Office,Carillion Services Ltd,Large,1196024,430.89,Gas,Administration
HM Land Registry,HM Land Registry,20/10/2017,FM Ext Helpdesk,Fylde Office,Carillion Services Ltd,Large,1195269,441.07,Facilities External Helpdesk,Administration
HM Land Registry,HM Land Registry,30/10/2017,FM Ext Helpdesk,Fylde Office,Carillion Services Ltd,Large,1196025,441.07,Facilities External Helpdesk,Administration
HM Land Registry,HM Land Registry,20/10/2017,Gas,Birkenhead Office,Carillion Services Ltd,Large,1195270,443.92,Gas,Administration
HM Land Registry,HM Land Registry,20/10/2017,"FF&F:Purchases <£1,000",Hull Office,Carillion Services Ltd,Large,1195271,448.78,"Furniture, Fixtures & Fittings: Purchases less than £1,000.00",Administration
HM Land Registry,HM Land Registry,30/10/2017,"FF&F:Purchases <£1,000",Coventry Office,Carillion Services Ltd,Large,1196027,448.78,"Furniture, Fixtures & Fittings: Purchases less than £1,000.00",Administration
HM Land Registry,HM Land Registry,20/10/2017,Grounds Maintenance,Wales Office,Carillion Services Ltd,Large,1195269,453.64,Grounds Maintenance,Administration
HM Land Registry,HM Land Registry,30/10/2017,Grounds Maintenance,Wales Office,Carillion Services Ltd,Large,1196025,453.64,Grounds Maintenance,Administration
HM Land Registry,HM Land Registry,30/10/2017,Gas,Wales Office,Carillion Services Ltd,Large,1196024,462.12,Gas,Administration
HM Land Registry,HM Land Registry,20/10/2017,Security Expenses,Wales Office,Carillion Services Ltd,Large,1195271,471.16,Security Expenses,Administration
HM Land Registry,HM Land Registry,20/10/2017,Pest Control,Nottingham Office,Carillion Services Ltd,Large,1195271,487.53,Pest Control,Administration
HM Land Registry,HM Land Registry,20/10/2017,FM Ext Helpdesk,Hull Office,Carillion Services Ltd,Large,1195269,489.1,Facilities External Helpdesk,Administration
HM Land Registry,HM Land Registry,30/10/2017,FM Ext Helpdesk,Hull Office,Carillion Services Ltd,Large,1196025,489.1,Facilities External Helpdesk,Administration
HM Land Registry,HM Land Registry,20/10/2017,FM Ext Helpdesk,Birkenhead Office,Carillion Services Ltd,Large,1195269,497.61,Facilities External Helpdesk,Administration
HM Land Registry,HM Land Registry,30/10/2017,FM Ext Helpdesk,Birkenhead Office,Carillion Services Ltd,Large,1196025,497.61,Facilities External Helpdesk,Administration
HM Land Registry,HM Land Registry,20/10/2017,Grounds Maintenance,Telford Office,Carillion Services Ltd,Large,1195271,510.39,Grounds Maintenance,Administration
HM Land Registry,HM Land Registry,30/10/2017,FF&F:Removals,Fylde Office,Carillion Services Ltd,Large,1196027,513.86,"Furniture, Fixtures & Fittings: Removals",Administration
HM Land Registry,HM Land Registry,20/10/2017,FM Ext Helpdesk,Leicester Office,Carillion Services Ltd,Large,1195269,517.46,Facilities External Helpdesk,Administration
HM Land Registry,HM Land Registry,30/10/2017,FM Ext Helpdesk,Leicester Office,Carillion Services Ltd,Large,1196025,517.46,Facilities External Helpdesk,Administration
HM Land Registry,HM Land Registry,20/10/2017,Grounds Maintenance,Croydon Office,Carillion Services Ltd,Large,1195269,521.27,Grounds Maintenance,Administration
HM Land Registry,HM Land Registry,30/10/2017,Grounds Maintenance,Croydon Office,Carillion Services Ltd,Large,1196025,521.27,Grounds Maintenance,Administration
HM Land Registry,HM Land Registry,20/10/2017,FM Ext Helpdesk,Wales Office,Carillion Services Ltd,Large,1195269,528.6,Facilities External Helpdesk,Administration
HM Land Registry,HM Land Registry,30/10/2017,FM Ext Helpdesk,Wales Office,Carillion Services Ltd,Large,1196025,528.6,Facilities External Helpdesk,Administration
HM Land Registry,HM Land Registry,30/10/2017,Waste Disposal,Gloucester Office,Carillion Services Ltd,Large,1196027,529.75,Waste Disposal,Administration
HM Land Registry,HM Land Registry,20/10/2017,Waste Disposal,Wales Office,Carillion Services Ltd,Large,1195269,529.77,Waste Disposal,Administration
HM Land Registry,HM Land Registry,30/10/2017,Waste Disposal,Wales Office,Carillion Services Ltd,Large,1196025,529.77,Waste Disposal,Administration
HM Land Registry,HM Land Registry,20/10/2017,"FF&F:Purchases <£1,000",Coventry Office,Carillion Services Ltd,Large,1195271,559.67,"Furniture, Fixtures & Fittings: Purchases less than £1,000.00",Administration
HM Land Registry,HM Land Registry,20/10/2017,Gas,Croydon Office,Carillion Services Ltd,Large,1195270,563.79,Gas,Administration
HM Land Registry,HM Land Registry,20/10/2017,FM Ext Helpdesk,Gloucester Computer Centre,Carillion Services Ltd,Large,1195269,571.46,Facilities External Helpdesk,Administration
HM Land Registry,HM Land Registry,30/10/2017,FM Ext Helpdesk,Gloucester Computer Centre,Carillion Services Ltd,Large,1196025,571.46,Facilities External Helpdesk,Administration
HM Land Registry,HM Land Registry,30/10/2017,Gas,Gloucester Office,Carillion Services Ltd,Large,1196024,572.68,Gas,Administration
HM Land Registry,HM Land Registry,30/10/2017,Gas,Hull Office,Carillion Services Ltd,Large,1196024,583.59,Gas,Administration
HM Land Registry,HM Land Registry,20/10/2017,FM Ext Helpdesk,Croydon Office,Carillion Services Ltd,Large,1195269,588.16,Facilities External Helpdesk,Administration
HM Land Registry,HM Land Registry,30/10/2017,FM Ext Helpdesk,Croydon Office,Carillion Services Ltd,Large,1196025,588.16,Facilities External Helpdesk,Administration
HM Land Registry,HM Land Registry,20/10/2017,"Property Management; Advice, Surveys & Inspections",Wales Office,Carillion Services Ltd,Large,1195271,588.5,"Property Management; Advice, Surveys and Inspections",Administration
HM Land Registry,HM Land Registry,20/10/2017,Gas,Gloucester Office,Carillion Services Ltd,Large,1195270,589.2,Gas,Administration
HM Land Registry,HM Land Registry,20/10/2017,Waste Disposal,Plymouth Office,Carillion Services Ltd,Large,1195271,592.14,Waste Disposal,Administration
HM Land Registry,HM Land Registry,20/10/2017,FM Ext Helpdesk,Durham Office,Carillion Services Ltd,Large,1195269,610.99,Facilities External Helpdesk,Administration
HM Land Registry,HM Land Registry,30/10/2017,FM Ext Helpdesk,Durham Office,Carillion Services Ltd,Large,1196025,610.99,Facilities External Helpdesk,Administration
HM Land Registry,HM Land Registry,20/10/2017,Grounds Maintenance,Gloucester Office,Carillion Services Ltd,Large,1195269,611.46,Grounds Maintenance,Administration
HM Land Registry,HM Land Registry,20/10/2017,Grounds Maintenance,Hull Office,Carillion Services Ltd,Large,1195269,611.46,Grounds Maintenance,Administration
HM Land Registry,HM Land Registry,30/10/2017,Grounds Maintenance,Gloucester Office,Carillion Services Ltd,Large,1196025,611.46,Grounds Maintenance,Administration
HM Land Registry,HM Land Registry,30/10/2017,Grounds Maintenance,Hull Office,Carillion Services Ltd,Large,1196025,611.46,Grounds Maintenance,Administration
HM Land Registry,HM Land Registry,20/10/2017,FM Ext Helpdesk,Gloucester Office,Carillion Services Ltd,Large,1195269,611.86,Facilities External Helpdesk,Administration
HM Land Registry,HM Land Registry,30/10/2017,FM Ext Helpdesk,Gloucester Office,Carillion Services Ltd,Large,1196025,611.86,Facilities External Helpdesk,Administration
HM Land Registry,HM Land Registry,20/10/2017,Gas,Fylde Office,Carillion Services Ltd,Large,1195270,619.17,Gas,Administration
HM Land Registry,HM Land Registry,20/10/2017,FM Ext Helpdesk,Peterborough Office,Carillion Services Ltd,Large,1195269,622.51,Facilities External Helpdesk,Administration
HM Land Registry,HM Land Registry,30/10/2017,FM Ext Helpdesk,Peterborough Office,Carillion Services Ltd,Large,1196025,622.51,Facilities External Helpdesk,Administration
HM Land Registry,HM Land Registry,20/10/2017,Waste Disposal,Director of Information Systems,Carillion Services Ltd,Large,1195269,627.81,Waste Disposal,Administration
HM Land Registry,HM Land Registry,30/10/2017,Waste Disposal,Director of Information Systems,Carillion Services Ltd,Large,1196025,627.81,Waste Disposal,Administration
HM Land Registry,HM Land Registry,20/10/2017,FM Ext Helpdesk,Telford Office,Carillion Services Ltd,Large,1195269,642.31,Facilities External Helpdesk,Administration
HM Land Registry,HM Land Registry,30/10/2017,FM Ext Helpdesk,Telford Office,Carillion Services Ltd,Large,1196025,642.31,Facilities External Helpdesk,Administration
HM Land Registry,HM Land Registry,20/10/2017,Waste Disposal,Durham Office,Carillion Services Ltd,Large,1195271,644.66,Waste Disposal,Administration
HM Land Registry,HM Land Registry,30/10/2017,FF&F:Removals,Birkenhead Office,Carillion Services Ltd,Large,1196027,654.84,"Furniture, Fixtures & Fittings: Removals",Administration
HM Land Registry,HM Land Registry,20/10/2017,FF&F:Removals,Nottingham Office,Carillion Services Ltd,Large,1195271,663.65,"Furniture, Fixtures & Fittings: Removals",Administration
HM Land Registry,HM Land Registry,20/10/2017,"FF&F:Purchases <£1,000",Telford Office,Carillion Services Ltd,Large,1195271,674.08,"Furniture, Fixtures & Fittings: Purchases less than £1,000.00",Administration
HM Land Registry,HM Land Registry,30/10/2017,Gas,Weymouth Office,Carillion Services Ltd,Large,1196024,677.74,Gas,Administration
HM Land Registry,HM Land Registry,20/10/2017,Gas,Weymouth Office,Carillion Services Ltd,Large,1195270,685.5,Gas,Administration
HM Land Registry,HM Land Registry,30/10/2017,Waste Disposal,Wales Office,Carillion Services Ltd,Large,1196027,686.8,Waste Disposal,Administration
HM Land Registry,HM Land Registry,20/10/2017,Grounds Maintenance,Weymouth Office,Carillion Services Ltd,Large,1195269,704.77,Grounds Maintenance,Administration
HM Land Registry,HM Land Registry,30/10/2017,Grounds Maintenance,Weymouth Office,Carillion Services Ltd,Large,1196025,704.77,Grounds Maintenance,Administration
HM Land Registry,HM Land Registry,20/10/2017,Waste Disposal,Wales Office,Carillion Services Ltd,Large,1195271,708.31,Waste Disposal,Administration
HM Land Registry,HM Land Registry,30/10/2017,Gas,Leicester Office,Carillion Services Ltd,Large,1196024,718.98,Gas,Administration
HM Land Registry,HM Land Registry,20/10/2017,"FF&F:Purchases <£1,000",Peterborough Office,Carillion Services Ltd,Large,1195271,719.2,"Furniture, Fixtures & Fittings: Purchases less than £1,000.00",Administration
HM Land Registry,HM Land Registry,20/10/2017,Grounds Maintenance,Birkenhead Office,Carillion Services Ltd,Large,1195271,745.79,Grounds Maintenance,Administration
HM Land Registry,HM Land Registry,30/10/2017,Gas,Fylde Office,Carillion Services Ltd,Large,1196024,750.15,Gas,Administration
HM Land Registry,HM Land Registry,30/10/2017,Water,Director of Information Systems,Carillion Services Ltd,Large,1196024,773.29,Water,Administration
HM Land Registry,HM Land Registry,20/10/2017,Grounds Maintenance,Durham Office,Carillion Services Ltd,Large,1195269,800.04,Grounds Maintenance,Administration
HM Land Registry,HM Land Registry,30/10/2017,Grounds Maintenance,Durham Office,Carillion Services Ltd,Large,1196025,800.04,Grounds Maintenance,Administration
HM Land Registry,HM Land Registry,30/10/2017,Office Cleaning Expenses,Peterborough Office,Carillion Services Ltd,Large,1196025,820.38,Office Cleaning Expenses,Administration
HM Land Registry,HM Land Registry,30/10/2017,Gas,Croydon Office,Carillion Services Ltd,Large,1196024,841.96,Gas,Administration
HM Land Registry,HM Land Registry,20/10/2017,Gas,Hull Office,Carillion Services Ltd,Large,1195270,873.49,Gas,Administration
HM Land Registry,HM Land Registry,30/10/2017,Water,Hull Office,Carillion Services Ltd,Large,1196024,892.94,Water,Administration
HM Land Registry,HM Land Registry,20/10/2017,Office Cleaning Expenses,Peterborough Office,Carillion Services Ltd,Large,1195269,944.28,Office Cleaning Expenses,Administration
HM Land Registry,HM Land Registry,30/10/2017,"FF&F:Purchases <£1,000",Telford Office,Carillion Services Ltd,Large,1196027,"1,030.12","Furniture, Fixtures & Fittings: Purchases less than £1,000.00",Administration
HM Land Registry,HM Land Registry,20/10/2017,Water,Director of Information Systems,Carillion Services Ltd,Large,1195270,"1,052.91",Water,Administration
HM Land Registry,HM Land Registry,20/10/2017,Grounds Maintenance,Telford Office,Carillion Services Ltd,Large,1195269,"1,053.73",Grounds Maintenance,Administration
HM Land Registry,HM Land Registry,30/10/2017,Grounds Maintenance,Telford Office,Carillion Services Ltd,Large,1196025,"1,053.73",Grounds Maintenance,Administration
HM Land Registry,HM Land Registry,20/10/2017,"FF&F:Purchases <£1,000",Fylde Office,Carillion Services Ltd,Large,1195271,"1,097.55","Furniture, Fixtures & Fittings: Purchases less than £1,000.00",Administration
HM Land Registry,HM Land Registry,30/10/2017,Marketing Services,Plymouth Office,Carillion Services Ltd,Large,1196027,"1,109.88",Marketing Services,Administration
HM Land Registry,HM Land Registry,20/10/2017,Vending Machine Consumables & Repairs,Birkenhead Office,Carillion Services Ltd,Large,1195269,"1,138.11",Vending Machine Consumables & Repairs,Administration
HM Land Registry,HM Land Registry,30/10/2017,Vending Machine Consumables & Repairs,Birkenhead Office,Carillion Services Ltd,Large,1196025,"1,138.11",Vending Machine Consumables & Repairs,Administration
HM Land Registry,HM Land Registry,20/10/2017,Office Cleaning Expenses,Director of Information Systems,Carillion Services Ltd,Large,1195271,"1,158.96",Office Cleaning Expenses,Administration
HM Land Registry,HM Land Registry,30/10/2017,Marketing Services,Birkenhead Office,Carillion Services Ltd,Large,1196027,"1,171.25",Marketing Services,Administration
HM Land Registry,HM Land Registry,20/10/2017,"FF&F:Purchases <£1,000",Wales Office,Carillion Services Ltd,Large,1195271,"1,172.28","Furniture, Fixtures & Fittings: Purchases less than £1,000.00",Administration
HM Land Registry,HM Land Registry,20/10/2017,Facilities - Quoted & Ad Hoc Works,Telford Office,Carillion Services Ltd,Large,1195271,"1,199.66",Facilities - Quoted & Ad Hoc Works,Administration
HM Land Registry,HM Land Registry,20/10/2017,FF&F:Removals,Peterborough Office,Carillion Services Ltd,Large,1195271,"1,273.30","Furniture, Fixtures & Fittings: Removals",Administration
HM Land Registry,HM Land Registry,30/10/2017,Gas,Telford Office,Carillion Services Ltd,Large,1196024,"1,344.99",Gas,Administration
HM Land Registry,HM Land Registry,20/10/2017,"FF&F:Purchases <£1,000",Birkenhead Office,Carillion Services Ltd,Large,1195271,"1,358.58","Furniture, Fixtures & Fittings: Purchases less than £1,000.00",Administration
HM Land Registry,HM Land Registry,20/10/2017,"FF&F:Purchases <£1,000",Durham Office,Carillion Services Ltd,Large,1195271,"1,382.96","Furniture, Fixtures & Fittings: Purchases less than £1,000.00",Administration
HM Land Registry,HM Land Registry,30/10/2017,Grounds Maintenance,Telford Office,Carillion Services Ltd,Large,1196027,"1,395.28",Grounds Maintenance,Administration
HM Land Registry,HM Land Registry,20/10/2017,Marketing Services,Communications Team,Carillion Services Ltd,Large,1195271,"1,456.05",Marketing Services,Administration
HM Land Registry,HM Land Registry,20/10/2017,Grounds Maintenance,Director of Information Systems,Carillion Services Ltd,Large,1195269,"1,461.51",Grounds Maintenance,Administration
HM Land Registry,HM Land Registry,30/10/2017,Grounds Maintenance,Director of Information Systems,Carillion Services Ltd,Large,1196025,"1,461.51",Grounds Maintenance,Administration
HM Land Registry,HM Land Registry,20/10/2017,Grounds Maintenance,Fylde Office,Carillion Services Ltd,Large,1195269,"1,494.11",Grounds Maintenance,Administration
HM Land Registry,HM Land Registry,30/10/2017,Grounds Maintenance,Fylde Office,Carillion Services Ltd,Large,1196025,"1,494.11",Grounds Maintenance,Administration
HM Land Registry,HM Land Registry,30/10/2017,Facilities - Quoted & Ad Hoc Works,Wales Office,Carillion Services Ltd,Large,1196027,"1,531.28",Facilities - Quoted & Ad Hoc Works,Administration
HM Land Registry,HM Land Registry,20/10/2017,FF&F:Removals,Fylde Office,Carillion Services Ltd,Large,1195271,"1,553.23","Furniture, Fixtures & Fittings: Removals",Administration
HM Land Registry,HM Land Registry,20/10/2017,FM Ext Helpdesk,Director of Information Systems,Carillion Services Ltd,Large,1195269,"1,576.55",Facilities External Helpdesk,Administration
HM Land Registry,HM Land Registry,30/10/2017,FM Ext Helpdesk,Director of Information Systems,Carillion Services Ltd,Large,1196025,"1,576.55",Facilities External Helpdesk,Administration
HM Land Registry,HM Land Registry,30/10/2017,Security Expenses,Nottingham Office,Carillion Services Ltd,Large,1196027,"1,672.48",Security Expenses,Administration
HM Land Registry,HM Land Registry,20/10/2017,FM Ext Helpdesk,Nottingham Office,Carillion Services Ltd,Large,1195269,"1,777.10",Facilities External Helpdesk,Administration
HM Land Registry,HM Land Registry,30/10/2017,FM Ext Helpdesk,Nottingham Office,Carillion Services Ltd,Large,1196025,"1,777.10",Facilities External Helpdesk,Administration
HM Land Registry,HM Land Registry,30/10/2017,"FF&F:Purchases <£1,000",Nottingham Office,Carillion Services Ltd,Large,1196027,"1,856.00","Furniture, Fixtures & Fittings: Purchases less than £1,000.00",Administration
HM Land Registry,HM Land Registry,30/10/2017,Facilities - Quoted & Ad Hoc Works,Leicester Office,Carillion Services Ltd,Large,1196027,"2,006.53",Facilities - Quoted & Ad Hoc Works,Administration
HM Land Registry,HM Land Registry,20/10/2017,Water,Hull Office,Carillion Services Ltd,Large,1195270,"2,018.00",Water,Administration
HM Land Registry,HM Land Registry,20/10/2017,Water,Gloucester Office,Carillion Services Ltd,Large,1195270,"2,084.64",Water,Administration
HM Land Registry,HM Land Registry,20/10/2017,Facilities - Quoted & Ad Hoc Works,Leicester Office,Carillion Services Ltd,Large,1195271,"2,124.00",Facilities - Quoted & Ad Hoc Works,Administration
HM Land Registry,HM Land Registry,30/10/2017,Security Expenses,Fylde Office,Carillion Services Ltd,Large,1196025,"2,227.28",Security Expenses,Administration
HM Land Registry,HM Land Registry,30/10/2017,Office Cleaning Expenses,Leicester Office,Carillion Services Ltd,Large,1196025,"2,275.93",Office Cleaning Expenses,Administration
HM Land Registry,HM Land Registry,30/10/2017,Security Expenses,Durham Office,Carillion Services Ltd,Large,1196025,"2,455.04",Security Expenses,Administration
HM Land Registry,HM Land Registry,20/10/2017,Office Cleaning Expenses,Leicester Office,Carillion Services Ltd,Large,1195269,"2,474.18",Office Cleaning Expenses,Administration
HM Land Registry,HM Land Registry,30/10/2017,Security Expenses,Wales Office,Carillion Services Ltd,Large,1196025,"2,482.60",Security Expenses,Administration
HM Land Registry,HM Land Registry,20/10/2017,Security Expenses,Fylde Office,Carillion Services Ltd,Large,1195269,"2,537.04",Security Expenses,Administration
HM Land Registry,HM Land Registry,30/10/2017,Security Expenses,Leicester Office,Carillion Services Ltd,Large,1196025,"2,683.41",Security Expenses,Administration
HM Land Registry,HM Land Registry,30/10/2017,Security Expenses,Telford Office,Carillion Services Ltd,Large,1196025,"2,728.38",Security Expenses,Administration
HM Land Registry,HM Land Registry,30/10/2017,Security Expenses,Weymouth Office,Carillion Services Ltd,Large,1196025,"2,734.56",Security Expenses,Administration
HM Land Registry,HM Land Registry,30/10/2017,Facilities - Quoted & Ad Hoc Works,Director of Information Systems,Carillion Services Ltd,Large,1196027,"2,748.83",Facilities - Quoted & Ad Hoc Works,Administration
HM Land Registry,HM Land Registry,30/10/2017,Security Expenses,Hull Office,Carillion Services Ltd,Large,1196025,"2,774.10",Security Expenses,Administration
HM Land Registry,HM Land Registry,20/10/2017,Security Expenses,Durham Office,Carillion Services Ltd,Large,1195269,"2,777.19",Security Expenses,Administration
HM Land Registry,HM Land Registry,20/10/2017,FM Managed Services,Gloucester Computer Centre,Carillion Services Ltd,Large,1195269,"2,797.75",Facilities Managed Services,Administration
HM Land Registry,HM Land Registry,30/10/2017,FM Managed Services,Gloucester Computer Centre,Carillion Services Ltd,Large,1196025,"2,797.75",Facilities Managed Services,Administration
HM Land Registry,HM Land Registry,20/10/2017,Security Expenses,Wales Office,Carillion Services Ltd,Large,1195269,"2,829.53",Security Expenses,Administration
HM Land Registry,HM Land Registry,20/10/2017,Facilities - Core Fee,Weymouth Office,Carillion Services Ltd,Large,1195269,"2,902.79",Facilities - Core Fee,Administration
HM Land Registry,HM Land Registry,30/10/2017,Facilities - Core Fee,Weymouth Office,Carillion Services Ltd,Large,1196025,"2,902.79",Facilities - Core Fee,Administration
HM Land Registry,HM Land Registry,20/10/2017,Security Expenses,Leicester Office,Carillion Services Ltd,Large,1195269,"2,993.17",Security Expenses,Administration
HM Land Registry,HM Land Registry,30/10/2017,Security Expenses,Birkenhead Office,Carillion Services Ltd,Large,1196025,"3,018.40",Security Expenses,Administration
HM Land Registry,HM Land Registry,20/10/2017,Security Expenses,Telford Office,Carillion Services Ltd,Large,1195269,"3,056.72",Security Expenses,Administration
HM Land Registry,HM Land Registry,20/10/2017,Security Expenses,Weymouth Office,Carillion Services Ltd,Large,1195269,"3,081.49",Security Expenses,Administration
HM Land Registry,HM Land Registry,30/10/2017,Pest Control,Wales Office,Carillion Services Ltd,Large,1196027,"3,081.60",Pest Control,Administration
HM Land Registry,HM Land Registry,20/10/2017,Security Expenses,Hull Office,Carillion Services Ltd,Large,1195269,"3,108.64",Security Expenses,Administration
HM Land Registry,HM Land Registry,30/10/2017,Security Expenses,Nottingham Office,Carillion Services Ltd,Large,1196025,"3,167.78",Security Expenses,Administration
HM Land Registry,HM Land Registry,30/10/2017,Grounds Maintenance,Hull Office,Carillion Services Ltd,Large,1196027,"3,187.53",Grounds Maintenance,Administration
HM Land Registry,HM Land Registry,20/10/2017,"Property Management; Advice, Surveys & Inspections",Peterborough Office,Carillion Services Ltd,Large,1195271,"3,210.00","Property Management; Advice, Surveys and Inspections",Administration
HM Land Registry,HM Land Registry,20/10/2017,FM Managed Services,Gloucester Office,Carillion Services Ltd,Large,1195269,"3,275.82",Facilities Managed Services,Administration
HM Land Registry,HM Land Registry,30/10/2017,FM Managed Services,Gloucester Office,Carillion Services Ltd,Large,1196025,"3,275.82",Facilities Managed Services,Administration
HM Land Registry,HM Land Registry,20/10/2017,Electricity,Leicester Office,Carillion Services Ltd,Large,1195270,"3,315.06",Electricity,Administration
HM Land Registry,HM Land Registry,20/10/2017,Security Expenses,Birkenhead Office,Carillion Services Ltd,Large,1195269,"3,365.33",Security Expenses,Administration
HM Land Registry,HM Land Registry,30/10/2017,Electricity,Leicester Office,Carillion Services Ltd,Large,1196024,"3,437.53",Electricity,Administration
HM Land Registry,HM Land Registry,20/10/2017,Security Expenses,Nottingham Office,Carillion Services Ltd,Large,1195269,"3,489.93",Security Expenses,Administration
HM Land Registry,HM Land Registry,20/10/2017,Electricity,Fylde Office,Carillion Services Ltd,Large,1195270,"3,496.94",Electricity,Administration
HM Land Registry,HM Land Registry,30/10/2017,Office Cleaning Expenses,Fylde Office,Carillion Services Ltd,Large,1196025,"3,563.55",Office Cleaning Expenses,Administration
HM Land Registry,HM Land Registry,20/10/2017,Facilities - Core Fee,Peterborough Office,Carillion Services Ltd,Large,1195269,"3,667.29",Facilities - Core Fee,Administration
HM Land Registry,HM Land Registry,30/10/2017,Facilities - Core Fee,Peterborough Office,Carillion Services Ltd,Large,1196025,"3,667.29",Facilities - Core Fee,Administration
HM Land Registry,HM Land Registry,30/10/2017,Electricity,Fylde Office,Carillion Services Ltd,Large,1196024,"3,697.78",Electricity,Administration
HM Land Registry,HM Land Registry,30/10/2017,Water,Fylde Office,Carillion Services Ltd,Large,1196024,"3,719.48",Water,Administration
HM Land Registry,HM Land Registry,20/10/2017,Facilities - Quoted & Ad Hoc Works,Peterborough Office,Carillion Services Ltd,Large,1195271,"3,737.08",Facilities - Quoted & Ad Hoc Works,Administration
HM Land Registry,HM Land Registry,20/10/2017,Facilities - Core Fee,Gloucester Office,Carillion Services Ltd,Large,1195269,"3,757.97",Facilities - Core Fee,Administration
HM Land Registry,HM Land Registry,30/10/2017,Facilities - Core Fee,Gloucester Office,Carillion Services Ltd,Large,1196025,"3,757.97",Facilities - Core Fee,Administration
HM Land Registry,HM Land Registry,20/10/2017,Water,Fylde Office,Carillion Services Ltd,Large,1195270,"3,761.32",Water,Administration
HM Land Registry,HM Land Registry,30/10/2017,Office Cleaning Expenses,Hull Office,Carillion Services Ltd,Large,1196025,"3,780.24",Office Cleaning Expenses,Administration
HM Land Registry,HM Land Registry,20/10/2017,Gas,Director of Information Systems,Carillion Services Ltd,Large,1195270,"3,805.40",Gas,Administration
HM Land Registry,HM Land Registry,20/10/2017,Office Cleaning Expenses,Fylde Office,Carillion Services Ltd,Large,1195269,"3,885.70",Office Cleaning Expenses,Administration
HM Land Registry,HM Land Registry,20/10/2017,FM Managed Services,Leicester Office,Carillion Services Ltd,Large,1195269,"4,124.56",Facilities Managed Services,Administration
HM Land Registry,HM Land Registry,30/10/2017,FM Managed Services,Leicester Office,Carillion Services Ltd,Large,1196025,"4,124.56",Facilities Managed Services,Administration
HM Land Registry,HM Land Registry,20/10/2017,Office Cleaning Expenses,Hull Office,Carillion Services Ltd,Large,1195269,"4,151.95",Office Cleaning Expenses,Administration
HM Land Registry,HM Land Registry,20/10/2017,Facilities - Core Fee,Fylde Office,Carillion Services Ltd,Large,1195269,"4,216.31",Facilities - Core Fee,Administration
HM Land Registry,HM Land Registry,30/10/2017,Facilities - Core Fee,Fylde Office,Carillion Services Ltd,Large,1196025,"4,216.31",Facilities - Core Fee,Administration
HM Land Registry,HM Land Registry,30/10/2017,Office Cleaning Expenses,Weymouth Office,Carillion Services Ltd,Large,1196025,"4,256.38",Office Cleaning Expenses,Administration
HM Land Registry,HM Land Registry,30/10/2017,Electricity,Wales Office,Carillion Services Ltd,Large,1196024,"4,468.52",Electricity,Administration
HM Land Registry,HM Land Registry,20/10/2017,Electricity,Wales Office,Carillion Services Ltd,Large,1195270,"4,505.47",Electricity,Administration
HM Land Registry,HM Land Registry,30/10/2017,Electricity,Gloucester Office,Carillion Services Ltd,Large,1196024,"4,566.61",Electricity,Administration
HM Land Registry,HM Land Registry,20/10/2017,Electricity,Gloucester Office,Carillion Services Ltd,Large,1195270,"4,577.70",Electricity,Administration
HM Land Registry,HM Land Registry,30/10/2017,Electricity,Durham Office,Carillion Services Ltd,Large,1196024,"4,608.91",Electricity,Administration
HM Land Registry,HM Land Registry,20/10/2017,Office Cleaning Expenses,Weymouth Office,Carillion Services Ltd,Large,1195269,"4,610.74",Office Cleaning Expenses,Administration
HM Land Registry,HM Land Registry,20/10/2017,Electricity,Durham Office,Carillion Services Ltd,Large,1195270,"4,615.76",Electricity,Administration
HM Land Registry,HM Land Registry,30/10/2017,Electricity,Telford Office,Carillion Services Ltd,Large,1196024,"4,637.72",Electricity,Administration
HM Land Registry,HM Land Registry,20/10/2017,Electricity,Telford Office,Carillion Services Ltd,Large,1195270,"4,652.21",Electricity,Administration
HM Land Registry,HM Land Registry,30/10/2017,Water,Wales Office,Carillion Services Ltd,Large,1196024,"4,655.35",Water,Administration
HM Land Registry,HM Land Registry,30/10/2017,Office Cleaning Expenses,Croydon Office,Carillion Services Ltd,Large,1196025,"4,662.84",Office Cleaning Expenses,Administration
HM Land Registry,HM Land Registry,30/10/2017,Electricity,Birkenhead Office,Carillion Services Ltd,Large,1196024,"4,668.72",Electricity,Administration
HM Land Registry,HM Land Registry,20/10/2017,Electricity,Birkenhead Office,Carillion Services Ltd,Large,1195270,"4,689.87",Electricity,Administration
HM Land Registry,HM Land Registry,20/10/2017,Electricity,Weymouth Office,Carillion Services Ltd,Large,1195270,"4,705.05",Electricity,Administration
HM Land Registry,HM Land Registry,30/10/2017,Office Cleaning Expenses,Wales Office,Carillion Services Ltd,Large,1196025,"4,747.60",Office Cleaning Expenses,Administration
HM Land Registry,HM Land Registry,30/10/2017,Water,Birkenhead Office,Carillion Services Ltd,Large,1196024,"4,752.51",Water,Administration
HM Land Registry,HM Land Registry,30/10/2017,Electricity,Weymouth Office,Carillion Services Ltd,Large,1196024,"4,824.91",Electricity,Administration
HM Land Registry,HM Land Registry,30/10/2017,Gas,Director of Information Systems,Carillion Services Ltd,Large,1196024,"4,899.62",Gas,Administration
HM Land Registry,HM Land Registry,20/10/2017,Office Cleaning Expenses,Wales Office,Carillion Services Ltd,Large,1195269,"5,064.79",Office Cleaning Expenses,Administration
HM Land Registry,HM Land Registry,20/10/2017,Office Cleaning Expenses,Croydon Office,Carillion Services Ltd,Large,1195269,"5,098.98",Office Cleaning Expenses,Administration
HM Land Registry,HM Land Registry,30/10/2017,Facilities - Quoted & Ad Hoc Works,Hull Office,Carillion Services Ltd,Large,1196027,"5,140.31",Facilities - Quoted & Ad Hoc Works,Administration
HM Land Registry,HM Land Registry,20/10/2017,Water,Leicester Office,Carillion Services Ltd,Large,1195270,"5,162.23",Water,Administration
HM Land Registry,HM Land Registry,30/10/2017,Office Cleaning Expenses,Birkenhead Office,Carillion Services Ltd,Large,1196025,"5,207.32",Office Cleaning Expenses,Administration
HM Land Registry,HM Land Registry,20/10/2017,FM Managed Services,Peterborough Office,Carillion Services Ltd,Large,1195269,"5,384.86",Facilities Managed Services,Administration
HM Land Registry,HM Land Registry,30/10/2017,FM Managed Services,Peterborough Office,Carillion Services Ltd,Large,1196025,"5,384.86",Facilities Managed Services,Administration
HM Land Registry,HM Land Registry,20/10/2017,FM Managed Services,Weymouth Office,Carillion Services Ltd,Large,1195269,"5,546.80",Facilities Managed Services,Administration
HM Land Registry,HM Land Registry,30/10/2017,FM Managed Services,Weymouth Office,Carillion Services Ltd,Large,1196025,"5,546.80",Facilities Managed Services,Administration
HM Land Registry,HM Land Registry,20/10/2017,Facilities - Core Fee,Wales Office,Carillion Services Ltd,Large,1195269,"5,563.43",Facilities - Core Fee,Administration
HM Land Registry,HM Land Registry,30/10/2017,Facilities - Core Fee,Wales Office,Carillion Services Ltd,Large,1196025,"5,563.43",Facilities - Core Fee,Administration
HM Land Registry,HM Land Registry,20/10/2017,"FF&F:Purchases <£1,000",Gloucester Office,Carillion Services Ltd,Large,1195271,"5,571.78","Furniture, Fixtures & Fittings: Purchases less than £1,000.00",Administration
HM Land Registry,HM Land Registry,20/10/2017,FM Managed Services,Hull Office,Carillion Services Ltd,Large,1195269,"5,577.91",Facilities Managed Services,Administration
HM Land Registry,HM Land Registry,30/10/2017,FM Managed Services,Hull Office,Carillion Services Ltd,Large,1196025,"5,577.91",Facilities Managed Services,Administration
HM Land Registry,HM Land Registry,20/10/2017,Facilities - Core Fee,Birkenhead Office,Carillion Services Ltd,Large,1195269,"5,644.91",Facilities - Core Fee,Administration
HM Land Registry,HM Land Registry,30/10/2017,Facilities - Core Fee,Birkenhead Office,Carillion Services Ltd,Large,1196025,"5,644.91",Facilities - Core Fee,Administration
HM Land Registry,HM Land Registry,30/10/2017,Office Cleaning Expenses,Nottingham Office,Carillion Services Ltd,Large,1196025,"5,693.27",Office Cleaning Expenses,Administration
HM Land Registry,HM Land Registry,30/10/2017,"FF&F:Purchases <£1,000",Durham Office,Carillion Services Ltd,Large,1196027,"5,698.27","Furniture, Fixtures & Fittings: Purchases less than £1,000.00",Administration
HM Land Registry,HM Land Registry,20/10/2017,Office Cleaning Expenses,Birkenhead Office,Carillion Services Ltd,Large,1195269,"5,727.71",Office Cleaning Expenses,Administration
HM Land Registry,HM Land Registry,20/10/2017,FM Managed Services,Fylde Office,Carillion Services Ltd,Large,1195269,"5,747.29",Facilities Managed Services,Administration
HM Land Registry,HM Land Registry,30/10/2017,FM Managed Services,Fylde Office,Carillion Services Ltd,Large,1196025,"5,747.29",Facilities Managed Services,Administration
HM Land Registry,HM Land Registry,30/10/2017,Electricity,Nottingham Office,Carillion Services Ltd,Large,1196024,"5,757.62",Electricity,Administration
HM Land Registry,HM Land Registry,20/10/2017,Electricity,Nottingham Office,Carillion Services Ltd,Large,1195270,"5,788.16",Electricity,Administration
HM Land Registry,HM Land Registry,20/10/2017,FM Managed Services,Wales Office,Carillion Services Ltd,Large,1195269,"5,800.14",Facilities Managed Services,Administration
HM Land Registry,HM Land Registry,30/10/2017,FM Managed Services,Wales Office,Carillion Services Ltd,Large,1196025,"5,800.14",Facilities Managed Services,Administration
HM Land Registry,HM Land Registry,20/10/2017,FM Managed Services,Durham Office,Carillion Services Ltd,Large,1195269,"5,854.57",Facilities Managed Services,Administration
HM Land Registry,HM Land Registry,30/10/2017,FM Managed Services,Durham Office,Carillion Services Ltd,Large,1196025,"5,854.57",Facilities Managed Services,Administration
HM Land Registry,HM Land Registry,20/10/2017,Electricity,Hull Office,Carillion Services Ltd,Large,1195270,"5,892.82",Electricity,Administration
HM Land Registry,HM Land Registry,30/10/2017,Office Cleaning Expenses,Telford Office,Carillion Services Ltd,Large,1196025,"5,989.56",Office Cleaning Expenses,Administration
HM Land Registry,HM Land Registry,30/10/2017,Office Cleaning Expenses,Durham Office,Carillion Services Ltd,Large,1196025,"6,031.79",Office Cleaning Expenses,Administration
HM Land Registry,HM Land Registry,20/10/2017,FM Managed Services,Telford Office,Carillion Services Ltd,Large,1195269,"6,032.59",Facilities Managed Services,Administration
HM Land Registry,HM Land Registry,30/10/2017,FM Managed Services,Telford Office,Carillion Services Ltd,Large,1196025,"6,032.59",Facilities Managed Services,Administration
HM Land Registry,HM Land Registry,20/10/2017,FM Managed Services,Birkenhead Office,Carillion Services Ltd,Large,1195269,"6,042.39",Facilities Managed Services,Administration
HM Land Registry,HM Land Registry,30/10/2017,FM Managed Services,Birkenhead Office,Carillion Services Ltd,Large,1196025,"6,042.39",Facilities Managed Services,Administration
HM Land Registry,HM Land Registry,20/10/2017,FM Managed Services,Croydon Office,Carillion Services Ltd,Large,1195269,"6,106.98",Facilities Managed Services,Administration
HM Land Registry,HM Land Registry,30/10/2017,FM Managed Services,Croydon Office,Carillion Services Ltd,Large,1196025,"6,106.98",Facilities Managed Services,Administration
HM Land Registry,HM Land Registry,30/10/2017,Electricity,Hull Office,Carillion Services Ltd,Large,1196024,"6,119.69",Electricity,Administration
HM Land Registry,HM Land Registry,20/10/2017,Office Cleaning Expenses,Nottingham Office,Carillion Services Ltd,Large,1195269,"6,141.80",Office Cleaning Expenses,Administration
HM Land Registry,HM Land Registry,20/10/2017,Office Cleaning Expenses,Telford Office,Carillion Services Ltd,Large,1195269,"6,376.14",Office Cleaning Expenses,Administration
HM Land Registry,HM Land Registry,20/10/2017,Facilities - Core Fee,Nottingham Office,Carillion Services Ltd,Large,1195269,"6,418.03",Facilities - Core Fee,Administration
HM Land Registry,HM Land Registry,30/10/2017,Facilities - Core Fee,Nottingham Office,Carillion Services Ltd,Large,1196025,"6,418.03",Facilities - Core Fee,Administration
HM Land Registry,HM Land Registry,20/10/2017,Facilities - Core Fee,Telford Office,Carillion Services Ltd,Large,1195269,"6,542.91",Facilities - Core Fee,Administration
HM Land Registry,HM Land Registry,30/10/2017,Facilities - Core Fee,Telford Office,Carillion Services Ltd,Large,1196025,"6,542.91",Facilities - Core Fee,Administration
HM Land Registry,HM Land Registry,20/10/2017,Office Cleaning Expenses,Durham Office,Carillion Services Ltd,Large,1195269,"6,552.18",Office Cleaning Expenses,Administration
HM Land Registry,HM Land Registry,20/10/2017,Facilities - Core Fee,Durham Office,Carillion Services Ltd,Large,1195269,"6,660.25",Facilities - Core Fee,Administration
HM Land Registry,HM Land Registry,30/10/2017,Facilities - Core Fee,Durham Office,Carillion Services Ltd,Large,1196025,"6,660.25",Facilities - Core Fee,Administration
HM Land Registry,HM Land Registry,30/10/2017,"FF&F:Purchases <£1,000",Leicester Office,Carillion Services Ltd,Large,1196027,"6,698.85","Furniture, Fixtures & Fittings: Purchases less than £1,000.00",Administration
HM Land Registry,HM Land Registry,20/10/2017,Water,Weymouth Office,Carillion Services Ltd,Large,1195270,"6,714.93",Water,Administration
HM Land Registry,HM Land Registry,30/10/2017,Office Cleaning Expenses,Gloucester Office,Carillion Services Ltd,Large,1196025,"6,729.81",Office Cleaning Expenses,Administration
HM Land Registry,HM Land Registry,20/10/2017,Facilities - Core Fee,Hull Office,Carillion Services Ltd,Large,1195269,"6,786.69",Facilities - Core Fee,Administration
HM Land Registry,HM Land Registry,30/10/2017,Facilities - Core Fee,Hull Office,Carillion Services Ltd,Large,1196025,"6,786.69",Facilities - Core Fee,Administration
HM Land Registry,HM Land Registry,30/10/2017,Electricity,Croydon Office,Carillion Services Ltd,Large,1196024,"6,832.77",Electricity,Administration
HM Land Registry,HM Land Registry,20/10/2017,Electricity,Croydon Office,Carillion Services Ltd,Large,1195270,"7,083.72",Electricity,Administration
HM Land Registry,HM Land Registry,20/10/2017,Office Cleaning Expenses,Gloucester Office,Carillion Services Ltd,Large,1195269,"7,292.33",Office Cleaning Expenses,Administration
HM Land Registry,HM Land Registry,30/10/2017,Facilities - Quoted & Ad Hoc Works,Nottingham Office,Carillion Services Ltd,Large,1196027,"7,491.44",Facilities - Quoted & Ad Hoc Works,Administration
HM Land Registry,HM Land Registry,30/10/2017,Security Expenses,Gloucester Computer Centre,Carillion Services Ltd,Large,1196025,"7,590.59",Security Expenses,Administration
HM Land Registry,HM Land Registry,30/10/2017,Facilities - Quoted & Ad Hoc Works,Telford Office,Carillion Services Ltd,Large,1196027,"7,594.28",Facilities - Quoted & Ad Hoc Works,Administration
HM Land Registry,HM Land Registry,20/10/2017,Security Expenses,Central Facilities Management Team,Carillion Services Ltd,Large,1195271,"7,645.70",Security Expenses,Administration
HM Land Registry,HM Land Registry,30/10/2017,Grounds Maintenance,Durham Office,Carillion Services Ltd,Large,1196027,"7,772.18",Grounds Maintenance,Administration
HM Land Registry,HM Land Registry,30/10/2017,Facilities - Quoted & Ad Hoc Works,Plymouth Office,Carillion Services Ltd,Large,1196027,"8,120.77",Facilities - Quoted & Ad Hoc Works,Administration
HM Land Registry,HM Land Registry,20/10/2017,Facilities - Core Fee,Gloucester Computer Centre,Carillion Services Ltd,Large,1195269,"8,198.46",Facilities - Core Fee,Administration
HM Land Registry,HM Land Registry,30/10/2017,Facilities - Core Fee,Gloucester Computer Centre,Carillion Services Ltd,Large,1196025,"8,198.46",Facilities - Core Fee,Administration
HM Land Registry,HM Land Registry,30/10/2017,Security Expenses,Croydon Office,Carillion Services Ltd,Large,1196025,"8,300.28",Security Expenses,Administration
HM Land Registry,HM Land Registry,20/10/2017,Facilities - Core Fee,Croydon Office,Carillion Services Ltd,Large,1195269,"8,362.23",Facilities - Core Fee,Administration
HM Land Registry,HM Land Registry,30/10/2017,Facilities - Core Fee,Croydon Office,Carillion Services Ltd,Large,1196025,"8,362.23",Facilities - Core Fee,Administration
HM Land Registry,HM Land Registry,20/10/2017,Security Expenses,Gloucester Computer Centre,Carillion Services Ltd,Large,1195269,"8,423.22",Security Expenses,Administration
HM Land Registry,HM Land Registry,30/10/2017,Office Cleaning Expenses,Director of Information Systems,Carillion Services Ltd,Large,1196025,"8,488.44",Office Cleaning Expenses,Administration
HM Land Registry,HM Land Registry,20/10/2017,Water,Durham Office,Carillion Services Ltd,Large,1195270,"8,771.24",Water,Administration
HM Land Registry,HM Land Registry,20/10/2017,Security Expenses,Croydon Office,Carillion Services Ltd,Large,1195269,"8,925.99",Security Expenses,Administration
HM Land Registry,HM Land Registry,30/10/2017,Security Expenses,Gloucester Office,Carillion Services Ltd,Large,1196025,"9,013.84",Security Expenses,Administration
HM Land Registry,HM Land Registry,20/10/2017,Facilities - Core Fee,Leicester Office,Carillion Services Ltd,Large,1195269,"9,260.43",Facilities - Core Fee,Administration
HM Land Registry,HM Land Registry,30/10/2017,Facilities - Core Fee,Leicester Office,Carillion Services Ltd,Large,1196025,"9,260.43",Facilities - Core Fee,Administration
HM Land Registry,HM Land Registry,20/10/2017,Office Cleaning Expenses,Director of Information Systems,Carillion Services Ltd,Large,1195269,"9,271.51",Office Cleaning Expenses,Administration
HM Land Registry,HM Land Registry,20/10/2017,Facilities - Quoted & Ad Hoc Works,Fylde Office,Carillion Services Ltd,Large,1195271,"9,610.68",Facilities - Quoted & Ad Hoc Works,Administration
HM Land Registry,HM Land Registry,30/10/2017,Facilities - Quoted & Ad Hoc Works,Durham Office,Carillion Services Ltd,Large,1196027,"9,740.80",Facilities - Quoted & Ad Hoc Works,Administration
HM Land Registry,HM Land Registry,20/10/2017,Water,Croydon Office,Carillion Services Ltd,Large,1195270,"9,932.91",Water,Administration
HM Land Registry,HM Land Registry,20/10/2017,Security Expenses,Gloucester Office,Carillion Services Ltd,Large,1195269,"10,070.73",Security Expenses,Administration
HM Land Registry,HM Land Registry,30/10/2017,"FF&F:Purchases <£1,000",Plymouth Office,Carillion Services Ltd,Large,1196027,"10,230.53","Furniture, Fixtures & Fittings: Purchases less than £1,000.00",Administration
HM Land Registry,HM Land Registry,20/10/2017,FM Managed Services,Nottingham Office,Carillion Services Ltd,Large,1195269,"10,685.05",Facilities Managed Services,Administration
HM Land Registry,HM Land Registry,30/10/2017,FM Managed Services,Nottingham Office,Carillion Services Ltd,Large,1196025,"10,685.05",Facilities Managed Services,Administration
HM Land Registry,HM Land Registry,30/10/2017,Facilities - Quoted & Ad Hoc Works,Birkenhead Office,Carillion Services Ltd,Large,1196027,"10,786.61",Facilities - Quoted & Ad Hoc Works,Administration
HM Land Registry,HM Land Registry,20/10/2017,Facilities - Quoted & Ad Hoc Works,Hull Office,Carillion Services Ltd,Large,1195271,"10,966.17",Facilities - Quoted & Ad Hoc Works,Administration
HM Land Registry,HM Land Registry,20/10/2017,Major Property Maintenance Projects,Gloucester Computer Centre,Carillion Services Ltd,Large,1195271,"11,033.42",Major Property Maintenance Projects,Administration
HM Land Registry,HM Land Registry,30/10/2017,Office Cleaning Expenses,Central Facilities Management Team,Carillion Services Ltd,Large,1196025,"11,443.62",Office Cleaning Expenses,Administration
HM Land Registry,HM Land Registry,20/10/2017,Facilities - Quoted & Ad Hoc Works,Wales Office,Carillion Services Ltd,Large,1195271,"12,050.04",Facilities - Quoted & Ad Hoc Works,Administration
HM Land Registry,HM Land Registry,30/10/2017,Facilities - Quoted & Ad Hoc Works,Weymouth Office,Carillion Services Ltd,Large,1196027,"12,398.10",Facilities - Quoted & Ad Hoc Works,Administration
HM Land Registry,HM Land Registry,20/10/2017,Facilities - Quoted & Ad Hoc Works,Birkenhead Office,Carillion Services Ltd,Large,1195271,"13,712.63",Facilities - Quoted & Ad Hoc Works,Administration
HM Land Registry,HM Land Registry,20/10/2017,Facilities - Quoted & Ad Hoc Works,Nottingham Office,Carillion Services Ltd,Large,1195271,"13,721.76",Facilities - Quoted & Ad Hoc Works,Administration
HM Land Registry,HM Land Registry,20/10/2017,FM Managed Services,Director of Information Systems,Carillion Services Ltd,Large,1195269,"13,797.37",Facilities Managed Services,Administration
HM Land Registry,HM Land Registry,30/10/2017,FM Managed Services,Director of Information Systems,Carillion Services Ltd,Large,1196025,"13,797.37",Facilities Managed Services,Administration
HM Land Registry,HM Land Registry,30/10/2017,"FF&F:Purchases <£1,000",Birkenhead Office,Carillion Services Ltd,Large,1196027,"14,281.59","Furniture, Fixtures & Fittings: Purchases less than £1,000.00",Administration
HM Land Registry,HM Land Registry,30/10/2017,"FF&F:Purchases <£1,000",Fylde Office,Carillion Services Ltd,Large,1196027,"14,797.66","Furniture, Fixtures & Fittings: Purchases less than £1,000.00",Administration
HM Land Registry,HM Land Registry,30/10/2017,Facilities - Quoted & Ad Hoc Works,Gloucester Computer Centre,Carillion Services Ltd,Large,1196027,"15,350.99",Facilities - Quoted & Ad Hoc Works,Administration
HM Land Registry,HM Land Registry,30/10/2017,Facilities - Quoted & Ad Hoc Works,Central Facilities Management Team,Carillion Services Ltd,Large,1196027,"15,446.19",Facilities - Quoted & Ad Hoc Works,Administration
HM Land Registry,HM Land Registry,30/10/2017,"FF&F:Purchases <£1,000",Peterborough Office,Carillion Services Ltd,Large,1196027,"16,132.02","Furniture, Fixtures & Fittings: Purchases less than £1,000.00",Administration
HM Land Registry,HM Land Registry,20/10/2017,Facilities - Quoted & Ad Hoc Works,Plymouth Office,Carillion Services Ltd,Large,1195271,"16,435.43",Facilities - Quoted & Ad Hoc Works,Administration
HM Land Registry,HM Land Registry,30/10/2017,Security Expenses,Director of Information Systems,Carillion Services Ltd,Large,1196025,"16,561.57",Security Expenses,Administration
HM Land Registry,HM Land Registry,30/10/2017,Security Expenses,Central Facilities Management Team,Carillion Services Ltd,Large,1196027,"17,166.47",Security Expenses,Administration
HM Land Registry,HM Land Registry,30/10/2017,Facilities - Quoted & Ad Hoc Works,Gloucester Office,Carillion Services Ltd,Large,1196027,"17,640.90",Facilities - Quoted & Ad Hoc Works,Administration
HM Land Registry,HM Land Registry,20/10/2017,Facilities - Core Fee,Director of Information Systems,Carillion Services Ltd,Large,1195269,"18,421.86",Facilities - Core Fee,Administration
HM Land Registry,HM Land Registry,30/10/2017,Facilities - Core Fee,Director of Information Systems,Carillion Services Ltd,Large,1196025,"18,421.86",Facilities - Core Fee,Administration
HM Land Registry,HM Land Registry,20/10/2017,Security Expenses,Director of Information Systems,Carillion Services Ltd,Large,1195269,"18,524.15",Security Expenses,Administration
HM Land Registry,HM Land Registry,20/10/2017,Facilities - Quoted & Ad Hoc Works,Gloucester Office,Carillion Services Ltd,Large,1195271,"18,912.06",Facilities - Quoted & Ad Hoc Works,Administration
HM Land Registry,HM Land Registry,30/10/2017,Facilities - Quoted & Ad Hoc Works,Fylde Office,Carillion Services Ltd,Large,1196027,"20,213.18",Facilities - Quoted & Ad Hoc Works,Administration
HM Land Registry,HM Land Registry,20/10/2017,Facilities - Quoted & Ad Hoc Works,Durham Office,Carillion Services Ltd,Large,1195271,"20,230.21",Facilities - Quoted & Ad Hoc Works,Administration
HM Land Registry,HM Land Registry,30/10/2017,Facilities - Quoted & Ad Hoc Works,Croydon Office,Carillion Services Ltd,Large,1196027,"21,563.05",Facilities - Quoted & Ad Hoc Works,Administration
HM Land Registry,HM Land Registry,30/10/2017,"FF&F:Purchases <£1,000",Hull Office,Carillion Services Ltd,Large,1196027,"22,979.00","Furniture, Fixtures & Fittings: Purchases less than £1,000.00",Administration
HM Land Registry,HM Land Registry,30/10/2017,Major Property Maintenance Projects,Hull Office,Carillion Services Ltd,Large,1196027,"26,263.62",Major Property Maintenance Projects,Administration
HM Land Registry,HM Land Registry,20/10/2017,Facilities - Quoted & Ad Hoc Works,Weymouth Office,Carillion Services Ltd,Large,1195271,"26,335.01",Facilities - Quoted & Ad Hoc Works,Administration
HM Land Registry,HM Land Registry,20/10/2017,Facilities - Quoted & Ad Hoc Works,Director of Information Systems,Carillion Services Ltd,Large,1195271,"28,466.73",Facilities - Quoted & Ad Hoc Works,Administration
HM Land Registry,HM Land Registry,30/10/2017,Electricity,Gloucester Computer Centre,Carillion Services Ltd,Large,1196024,"29,409.22",Electricity,Administration
HM Land Registry,HM Land Registry,20/10/2017,Electricity,Gloucester Computer Centre,Carillion Services Ltd,Large,1195270,"30,110.13",Electricity,Administration
HM Land Registry,HM Land Registry,20/10/2017,Facilities - Quoted & Ad Hoc Works,Croydon Office,Carillion Services Ltd,Large,1195271,"31,226.32",Facilities - Quoted & Ad Hoc Works,Administration
HM Land Registry,HM Land Registry,30/10/2017,Facilities - Quoted & Ad Hoc Works,Peterborough Office,Carillion Services Ltd,Large,1196027,"32,241.37",Facilities - Quoted & Ad Hoc Works,Administration
HM Land Registry,HM Land Registry,30/10/2017,Major Property Maintenance Projects,Croydon Office,Carillion Services Ltd,Large,1196027,"44,770.76",Major Property Maintenance Projects,Administration
HM Land Registry,HM Land Registry,30/10/2017,Electricity,Director of Information Systems,Carillion Services Ltd,Large,1196024,"49,438.67",Electricity,Administration
HM Land Registry,HM Land Registry,20/10/2017,Electricity,Director of Information Systems,Carillion Services Ltd,Large,1195270,"50,877.63",Electricity,Administration
HM Land Registry,HM Land Registry,20/10/2017,Facilities - Quoted & Ad Hoc Works,Gloucester Computer Centre,Carillion Services Ltd,Large,1195271,"56,697.58",Facilities - Quoted & Ad Hoc Works,Administration
HM Land Registry,HM Land Registry,27/10/2017,Consultancy Non-IT Advice Only,Dir: Finance,CGI IT UK Limited,Large,1195433,"35,558.24",Consultancy Non-IT Advice Only,Administration
HM Land Registry,HM Land Registry,26/10/2017,Consultancy Non-IT Advice Only,Dir: Finance,CGI IT UK Limited,Large,1195434,"51,748.64",Consultancy Non-IT Advice Only,Administration
HM Land Registry,HM Land Registry,05/10/2017,Computer Equipment Maintenance,IS Service Delivery,CGI IT UK Limited,Large,1193752,"61,500.00",Computer Equipment Maintenance,Administration
HM Land Registry,HM Land Registry,27/10/2017,Rates Payable,Wales Office,City & County of Swansea,Large,1176720,"22,580.00",Rates Payable,Administration
HM Land Registry,HM Land Registry,31/10/2017,Rates Payable,Croydon Office,Croydon Council,Large,1176376,"40,419.00",Rates Payable,Administration
HM Land Registry,HM Land Registry,02/10/2017,Rates Payable,Croydon Office,Croydon Council,Large,1176376,"40,419.00",Rates Payable,Administration
HM Land Registry,HM Land Registry,27/10/2017,Rates Payable,Durham Office,Durham County Council,Large,1176070,"28,213.00",Rates Payable,Administration
HM Land Registry,HM Land Registry,26/10/2017,Consultancy Non-IT Advice Only,Dir: Legal Services,Enterprise Privacy Group Ltd,SME,1195660,"26,600.00",Consultancy Non-IT Advice Only,Administration
HM Land Registry,HM Land Registry,06/10/2017,Computer Equipment Maintenance,IS Service Delivery,ESRI (UK) Ltd,Large,1193909,"70,460.00",Computer Equipment Maintenance,Administration
HM Land Registry,HM Land Registry,27/10/2017,Rates Payable,Fylde Office,Fylde Borough Council,Large,1175982,"17,124.00",Rates Payable,Administration
HM Land Registry,HM Land Registry,27/10/2017,Rates Payable,Gloucester Office,Gloucester City Council,Large,1175823,"28,980.00",Rates Payable,Administration
HM Land Registry,HM Land Registry,12/10/2017,Independent Adjudicators's Office Costs,Independent Adjudicator,HM Courts & Tribunals Service,Large,1194125,"762,700.00",Independent Adjudicators's Office Costs,Administration
HM Land Registry,HM Land Registry,02/10/2017,Professional Services,Dir: (Statutory) Digital Services,IBM United Kingdom Ltd,Large,1193342,"46,993.80",Professional Services,Administration
HM Land Registry,HM Land Registry,10/10/2017,Computer Equipment Maintenance,IS Service Delivery,IBM United Kingdom Ltd,Large,1194126,"107,611.48",Computer Equipment Maintenance,Administration
HM Land Registry,HM Land Registry,11/10/2017,Assets in the Course of Construction,Balance Sheet,Kainos Software Ltd,Large,1194025,"321,140.68",Assets in the Course of Construction,Administration
HM Land Registry,HM Land Registry,10/10/2017,Rates Payable,Hull Office,Kingston Upon Hull City Council,Large,1176171,"12,878.00",Rates Payable,Administration
HM Land Registry,HM Land Registry,25/10/2017,Professional Services,Strategy Team,KPMG LLP,SME,1195576,"41,336.40",Professional Services,Administration
HM Land Registry,HM Land Registry,27/10/2017,Rates Payable,Leicester Office,Leicester City Council,Large,1176378,"24,708.00",Rates Payable,Administration
HM Land Registry,HM Land Registry,26/10/2017,Assets in the Course of Construction,Balance Sheet,Market & Opinion Research International Ltd,Large,1195439,960,Assets in the Course of Construction,Administration
HM Land Registry,HM Land Registry,26/10/2017,Professional Services,Program: Local Land Charges,Market & Opinion Research International Ltd,Large,1195439,"28,944.00",Professional Services,Administration
HM Land Registry,HM Land Registry,16/10/2017,Data Network Lines,IS Service Delivery,MLL Telecom Ltd,Large,1194029,"63,112.51",Data Network Lines,Administration
HM Land Registry,HM Land Registry,27/10/2017,Rates Payable,Nottingham Office,Nottingham City Council,Large,1176596,"26,585.00",Rates Payable,Administration
HM Land Registry,HM Land Registry,18/10/2017,Professional Services,Program: Local Land Charges,PA Consulting Services Ltd,Large,1194648,"77,772.00",Professional Services,Administration
HM Land Registry,HM Land Registry,25/10/2017,Professional Services,Program: Local Land Charges,PA Consulting Services Ltd,Large,1195451,"80,118.04",Professional Services,Administration
HM Land Registry,HM Land Registry,27/10/2017,Rates Payable,Peterborough Office,Peterborough City Council,Large,1176069,"8,747.39",Rates Payable,Administration
HM Land Registry,HM Land Registry,27/10/2017,Rates Payable,Director of Information Systems,Plymouth City Council,Large,1176173,"36,385.00",Rates Payable,Administration
HM Land Registry,HM Land Registry,24/10/2017,Travel & Subsistence General Duty,Durham Office,Redfern Travel Ltd,SME,1195409,-376.11,Travel & Subsistence,Administration
HM Land Registry,HM Land Registry,31/10/2017,Travel & Subsistence General Duty,Director of Operations,Redfern Travel Ltd,SME,1196040,-282.9,Travel & Subsistence,Administration
HM Land Registry,HM Land Registry,24/10/2017,Travel & Subsistence General Duty,Director of Legal Services,Redfern Travel Ltd,SME,1195407,-211,Travel & Subsistence,Administration
HM Land Registry,HM Land Registry,24/10/2017,Travel & Subsistence General Duty,Guarantee & Litigation,Redfern Travel Ltd,SME,1195408,-118.8,Travel & Subsistence,Administration
HM Land Registry,HM Land Registry,31/10/2017,Travel & Subsistence General Duty,Guarantee & Litigation,Redfern Travel Ltd,SME,1196040,-101,Travel & Subsistence,Administration
HM Land Registry,HM Land Registry,24/10/2017,Travel & Subsistence General Duty,Finance Group,Redfern Travel Ltd,SME,1195447,-35.8,Travel & Subsistence,Administration
HM Land Registry,HM Land Registry,24/10/2017,Travel & Subsistence General Duty,Director of Legal Services,Redfern Travel Ltd,SME,1195447,-13.4,Travel & Subsistence,Administration
HM Land Registry,HM Land Registry,24/10/2017,Travel & Subsistence General Duty,Operations Assurance and Risk,Redfern Travel Ltd,SME,1195447,-8.55,Travel & Subsistence,Administration
HM Land Registry,HM Land Registry,31/10/2017,Travel & Subsistence General Duty,Marketing Services Team,Redfern Travel Ltd,SME,1196040,-7.3,Travel & Subsistence,Administration
HM Land Registry,HM Land Registry,24/10/2017,Travel & Subsistence General Duty,Dir: Legal Services,Redfern Travel Ltd,SME,1195407,0.6,Travel & Subsistence,Administration
HM Land Registry,HM Land Registry,24/10/2017,Travel & Subsistence General Duty,Croydon Office,Redfern Travel Ltd,SME,1195447,0.6,Travel & Subsistence,Administration
HM Land Registry,HM Land Registry,24/10/2017,Travel & Subsistence General Duty,Gloucester Office,Redfern Travel Ltd,SME,1195447,0.6,Travel & Subsistence,Administration
HM Land Registry,HM Land Registry,31/10/2017,Travel & Subsistence General Duty,International Business Development,Redfern Travel Ltd,SME,1196040,1.2,Travel & Subsistence,Administration
HM Land Registry,HM Land Registry,24/10/2017,Travel & Subsistence General Duty,Finance Group,Redfern Travel Ltd,SME,1195409,11.3,Travel & Subsistence,Administration
HM Land Registry,HM Land Registry,31/10/2017,Travel & Subsistence General Duty,Commercial & Customer Strategy & Performance,Redfern Travel Ltd,SME,1196040,11.3,Travel & Subsistence,Administration
HM Land Registry,HM Land Registry,24/10/2017,Travel & Subsistence General Duty,Leicester Office,Redfern Travel Ltd,SME,1195409,12,Travel & Subsistence,Administration
HM Land Registry,HM Land Registry,24/10/2017,Travel & Subsistence General Duty,Marketing Services Team,Redfern Travel Ltd,SME,1195407,12.3,Travel & Subsistence,Administration
HM Land Registry,HM Land Registry,24/10/2017,Travel & Subsistence General Duty,Marketing Services Team,Redfern Travel Ltd,SME,1195409,12.3,Travel & Subsistence,Administration
HM Land Registry,HM Land Registry,24/10/2017,Travel & Subsistence General Duty,Leicester Office,Redfern Travel Ltd,SME,1195407,13.6,Travel & Subsistence,Administration
HM Land Registry,HM Land Registry,24/10/2017,Travel & Subsistence Dual Workplace,Corporate Legal Services,Redfern Travel Ltd,SME,1195408,18.1,Travel & Subsistence,Administration
HM Land Registry,HM Land Registry,24/10/2017,Travel & Subsistence General Duty,Marketing Services Team,Redfern Travel Ltd,SME,1195408,24.6,Travel & Subsistence,Administration
HM Land Registry,HM Land Registry,24/10/2017,Travel & Subsistence Dual Workplace,Corporate Legal Services,Redfern Travel Ltd,SME,1195447,26.6,Travel & Subsistence,Administration
HM Land Registry,HM Land Registry,24/10/2017,Travel & Subsistence General Duty,Telford Office,Redfern Travel Ltd,SME,1195408,29.9,Travel & Subsistence,Administration
HM Land Registry,HM Land Registry,24/10/2017,Assets in the Course of Construction,Balance Sheet,Redfern Travel Ltd,SME,1195407,34.3,Assets in the Course of Construction,Administration
HM Land Registry,HM Land Registry,24/10/2017,Travel & Subsistence General Duty,LR Sports Council,Redfern Travel Ltd,SME,1195407,36.4,Travel & Subsistence,Administration
HM Land Registry,HM Land Registry,31/10/2017,Travel & Subsistence General Duty,Leicester Office,Redfern Travel Ltd,SME,1196040,41.4,Travel & Subsistence,Administration
HM Land Registry,HM Land Registry,24/10/2017,Travel & Subsistence General Duty,International Relations,Redfern Travel Ltd,SME,1195409,42.35,Travel & Subsistence,Administration
HM Land Registry,HM Land Registry,24/10/2017,Travel & Subsistence General Duty,Hull Office,Redfern Travel Ltd,SME,1195407,50.3,Travel & Subsistence,Administration
HM Land Registry,HM Land Registry,24/10/2017,Travel & Subsistence General Duty,LR Sports Council,Redfern Travel Ltd,SME,1195408,50.5,Travel & Subsistence,Administration
HM Land Registry,HM Land Registry,24/10/2017,Travel & Subsistence General Duty,Leicester Office,Redfern Travel Ltd,SME,1195447,53.5,Travel & Subsistence,Administration
HM Land Registry,HM Land Registry,24/10/2017,Travel & Subsistence General Duty,Weymouth Office,Redfern Travel Ltd,SME,1195409,63.6,Travel & Subsistence,Administration
HM Land Registry,HM Land Registry,24/10/2017,Travel & Subsistence General Duty,Nottingham Office,Redfern Travel Ltd,SME,1195408,65.6,Travel & Subsistence,Administration
HM Land Registry,HM Land Registry,31/10/2017,Travel & Subsistence General Duty,Local Lawyer Support Group,Redfern Travel Ltd,SME,1196040,68.6,Travel & Subsistence,Administration
HM Land Registry,HM Land Registry,24/10/2017,Travel & Subsistence General Duty,Marketing Services Team,Redfern Travel Ltd,SME,1195447,69.2,Travel & Subsistence,Administration
HM Land Registry,HM Land Registry,31/10/2017,Travel & Subsistence General Duty,Operations Assurance and Risk,Redfern Travel Ltd,SME,1196040,69.8,Travel & Subsistence,Administration
HM Land Registry,HM Land Registry,24/10/2017,Travel & Subsistence General Duty,Plymouth Office,Redfern Travel Ltd,SME,1195408,73.6,Travel & Subsistence,Administration
HM Land Registry,HM Land Registry,24/10/2017,Travel & Subsistence General Duty,Director of Legal Services,Redfern Travel Ltd,SME,1195408,77.6,Travel & Subsistence,Administration
HM Land Registry,HM Land Registry,24/10/2017,Travel & Subsistence General Duty,Finance Director,Redfern Travel Ltd,SME,1195408,77.6,Travel & Subsistence,Administration
HM Land Registry,HM Land Registry,31/10/2017,Travel & Subsistence General Duty,Weymouth Office,Redfern Travel Ltd,SME,1196040,78.8,Travel & Subsistence,Administration
HM Land Registry,HM Land Registry,31/10/2017,Travel & Subsistence General Duty,Gloucester Office,Redfern Travel Ltd,SME,1196040,79.3,Travel & Subsistence,Administration
HM Land Registry,HM Land Registry,24/10/2017,Travel & Subsistence General Duty,Commercial Director,Redfern Travel Ltd,SME,1195409,83.2,Travel & Subsistence,Administration
HM Land Registry,HM Land Registry,24/10/2017,Travel & Subsistence General Duty,IS Service Delivery,Redfern Travel Ltd,SME,1195407,83.59,Travel & Subsistence,Administration
HM Land Registry,HM Land Registry,24/10/2017,Travel & Subsistence General Duty,International Business Development,Redfern Travel Ltd,SME,1195409,84.9,Travel & Subsistence,Administration
HM Land Registry,HM Land Registry,24/10/2017,Travel & Subsistence General Duty,Commercial & Customer Strategy & Performance,Redfern Travel Ltd,SME,1195408,86.49,Travel & Subsistence,Administration
HM Land Registry,HM Land Registry,31/10/2017,Travel & Subsistence Overseas Travel,Research & Data Mining,Redfern Travel Ltd,SME,1196040,86.6,Travel & Subsistence,Administration
HM Land Registry,HM Land Registry,24/10/2017,Travel & Subsistence General Duty,Birkenhead Office,Redfern Travel Ltd,SME,1195408,87.95,Travel & Subsistence,Administration
HM Land Registry,HM Land Registry,24/10/2017,Travel & Subsistence Overseas Travel,International Relations,Redfern Travel Ltd,SME,1195447,88.14,Travel & Subsistence,Administration
HM Land Registry,HM Land Registry,24/10/2017,Assets in the Course of Construction,Balance Sheet,Redfern Travel Ltd,SME,1195409,88.4,Assets in the Course of Construction,Administration
HM Land Registry,HM Land Registry,24/10/2017,Travel & Subsistence General Duty,Dir: Legal Services,Redfern Travel Ltd,SME,1195408,89.6,Travel & Subsistence,Administration
HM Land Registry,HM Land Registry,24/10/2017,Travel & Subsistence General Duty,Director of Legal Services,Redfern Travel Ltd,SME,1195409,89.6,Travel & Subsistence,Administration
HM Land Registry,HM Land Registry,24/10/2017,Travel & Subsistence General Duty,Birkenhead Office,Redfern Travel Ltd,SME,1195447,90.2,Travel & Subsistence,Administration
HM Land Registry,HM Land Registry,24/10/2017,Travel & Subsistence General Duty,Property Asset Management Group,Redfern Travel Ltd,SME,1195407,91.2,Travel & Subsistence,Administration
HM Land Registry,HM Land Registry,24/10/2017,Travel & Subsistence General Duty,Registration Legal Services Group,Redfern Travel Ltd,SME,1195408,92,Travel & Subsistence,Administration
HM Land Registry,HM Land Registry,31/10/2017,Travel & Subsistence General Duty,Diversity,Redfern Travel Ltd,SME,1196040,94.4,Travel & Subsistence,Administration
HM Land Registry,HM Land Registry,24/10/2017,Travel & Subsistence General Duty,Strategy Team,Redfern Travel Ltd,SME,1195447,100.3,Travel & Subsistence,Administration
HM Land Registry,HM Land Registry,31/10/2017,Travel & Subsistence General Duty,Fylde Office,Redfern Travel Ltd,SME,1196040,101.5,Travel & Subsistence,Administration
HM Land Registry,HM Land Registry,31/10/2017,Travel & Subsistence General Duty,Communications Team,Redfern Travel Ltd,SME,1196040,102.3,Travel & Subsistence,Administration
HM Land Registry,HM Land Registry,24/10/2017,Travel & Subsistence General Duty,Registration Legal Services Group,Redfern Travel Ltd,SME,1195409,107.6,Travel & Subsistence,Administration
HM Land Registry,HM Land Registry,24/10/2017,Travel & Subsistence General Duty,International Business Development,Redfern Travel Ltd,SME,1195408,110.6,Travel & Subsistence,Administration
HM Land Registry,HM Land Registry,24/10/2017,Travel & Subsistence General Duty,Diversity,Redfern Travel Ltd,SME,1195408,111,Travel & Subsistence,Administration
HM Land Registry,HM Land Registry,24/10/2017,Travel & Subsistence General Duty,Diversity,Redfern Travel Ltd,SME,1195447,111.4,Travel & Subsistence,Administration
HM Land Registry,HM Land Registry,24/10/2017,Travel & Subsistence General Duty,Director of Operations,Redfern Travel Ltd,SME,1195407,114.6,Travel & Subsistence,Administration
HM Land Registry,HM Land Registry,24/10/2017,Travel & Subsistence General Duty,HR Operations,Redfern Travel Ltd,SME,1195409,121.5,Travel & Subsistence,Administration
HM Land Registry,HM Land Registry,24/10/2017,Assets in the Course of Construction,Balance Sheet,Redfern Travel Ltd,SME,1195408,125.7,Assets in the Course of Construction,Administration
HM Land Registry,HM Land Registry,24/10/2017,Travel & Subsistence General Duty,Business Development,Redfern Travel Ltd,SME,1195408,126.7,Travel & Subsistence,Administration
HM Land Registry,HM Land Registry,31/10/2017,Travel & Subsistence General Duty,Commercial Director,Redfern Travel Ltd,SME,1196040,127.2,Travel & Subsistence,Administration
HM Land Registry,HM Land Registry,24/10/2017,Travel & Subsistence Overseas Travel,International Relations,Redfern Travel Ltd,SME,1195409,127.64,Travel & Subsistence,Administration
HM Land Registry,HM Land Registry,31/10/2017,Travel & Subsistence General Duty,Wales Office,Redfern Travel Ltd,SME,1196040,129.2,Travel & Subsistence,Administration
HM Land Registry,HM Land Registry,24/10/2017,Travel & Subsistence General Duty,Internal Audit,Redfern Travel Ltd,SME,1195409,132.5,Travel & Subsistence,Administration
HM Land Registry,HM Land Registry,31/10/2017,Travel & Subsistence General Duty,Hull Office,Redfern Travel Ltd,SME,1196040,136.4,Travel & Subsistence,Administration
HM Land Registry,HM Land Registry,24/10/2017,Travel & Subsistence General Duty,Peterborough Office,Redfern Travel Ltd,SME,1195408,141.6,Travel & Subsistence,Administration
HM Land Registry,HM Land Registry,24/10/2017,Travel & Subsistence General Duty,Peterborough Office,Redfern Travel Ltd,SME,1195447,142.1,Travel & Subsistence,Administration
HM Land Registry,HM Land Registry,24/10/2017,Travel & Subsistence General Duty,Fylde Office,Redfern Travel Ltd,SME,1195409,142.33,Travel & Subsistence,Administration
HM Land Registry,HM Land Registry,24/10/2017,Travel & Subsistence Overseas Travel,Research & Data Mining,Redfern Travel Ltd,SME,1195408,142.85,Travel & Subsistence,Administration
HM Land Registry,HM Land Registry,24/10/2017,Travel & Subsistence General Duty,Fylde Office,Redfern Travel Ltd,SME,1195408,151.5,Travel & Subsistence,Administration
HM Land Registry,HM Land Registry,24/10/2017,Travel & Subsistence General Duty,Independent Complaints Reviewer,Redfern Travel Ltd,SME,1195409,155.4,Travel & Subsistence,Administration
HM Land Registry,HM Land Registry,24/10/2017,Travel & Subsistence General Duty,Coventry Office,Redfern Travel Ltd,SME,1195447,156.5,Travel & Subsistence,Administration
HM Land Registry,HM Land Registry,24/10/2017,Travel & Subsistence Dual Workplace,Corporate Legal Services,Redfern Travel Ltd,SME,1195409,157.8,Travel & Subsistence,Administration
HM Land Registry,HM Land Registry,31/10/2017,Travel & Subsistence General Duty,Croydon Office,Redfern Travel Ltd,SME,1196040,158.9,Travel & Subsistence,Administration
HM Land Registry,HM Land Registry,24/10/2017,Travel & Subsistence General Duty,Operations Assurance and Risk,Redfern Travel Ltd,SME,1195408,174.1,Travel & Subsistence,Administration
HM Land Registry,HM Land Registry,24/10/2017,Travel & Subsistence Dual Workplace,Data Group,Redfern Travel Ltd,SME,1195409,177.5,Travel & Subsistence,Administration
HM Land Registry,HM Land Registry,24/10/2017,Travel & Subsistence General Duty,HR Strategy & Policy,Redfern Travel Ltd,SME,1195408,178,Travel & Subsistence,Administration
HM Land Registry,HM Land Registry,31/10/2017,Travel & Subsistence General Duty,Internal Audit,Redfern Travel Ltd,SME,1196040,179.4,Travel & Subsistence,Administration
HM Land Registry,HM Land Registry,24/10/2017,Travel & Subsistence General Duty,LR Sports Council,Redfern Travel Ltd,SME,1195409,184.2,Travel & Subsistence,Administration
HM Land Registry,HM Land Registry,24/10/2017,Travel & Subsistence General Duty,Finance Group,Redfern Travel Ltd,SME,1195408,187.1,Travel & Subsistence,Administration
HM Land Registry,HM Land Registry,24/10/2017,Travel & Subsistence Overseas Travel,International Relations,Redfern Travel Ltd,SME,1195407,187.85,Travel & Subsistence,Administration
HM Land Registry,HM Land Registry,24/10/2017,Travel & Subsistence General Duty,Internal Audit,Redfern Travel Ltd,SME,1195447,188.08,Travel & Subsistence,Administration
HM Land Registry,HM Land Registry,24/10/2017,Travel & Subsistence General Duty,Local Lawyer Support Group,Redfern Travel Ltd,SME,1195409,196.9,Travel & Subsistence,Administration
HM Land Registry,HM Land Registry,24/10/2017,Travel & Subsistence General Duty,Commercial Director,Redfern Travel Ltd,SME,1195407,201.49,Travel & Subsistence,Administration
HM Land Registry,HM Land Registry,24/10/2017,Travel & Subsistence General Duty,Birkenhead Office,Redfern Travel Ltd,SME,1195409,203.7,Travel & Subsistence,Administration
HM Land Registry,HM Land Registry,24/10/2017,Travel & Subsistence General Duty,Telford Office,Redfern Travel Ltd,SME,1195409,205.03,Travel & Subsistence,Administration
HM Land Registry,HM Land Registry,31/10/2017,Assets in the Course of Construction,Balance Sheet,Redfern Travel Ltd,SME,1196040,205.2,Assets in the Course of Construction,Administration
HM Land Registry,HM Land Registry,24/10/2017,Travel & Subsistence General Duty,Nottingham Office,Redfern Travel Ltd,SME,1195409,205.5,Travel & Subsistence,Administration
HM Land Registry,HM Land Registry,24/10/2017,Travel & Subsistence General Duty,Croydon Office,Redfern Travel Ltd,SME,1195409,205.6,Travel & Subsistence,Administration
HM Land Registry,HM Land Registry,24/10/2017,Travel & Subsistence General Duty,Hull Office,Redfern Travel Ltd,SME,1195447,228.6,Travel & Subsistence,Administration
HM Land Registry,HM Land Registry,24/10/2017,Travel & Subsistence General Duty,Internal Audit,Redfern Travel Ltd,SME,1195408,230.75,Travel & Subsistence,Administration
HM Land Registry,HM Land Registry,31/10/2017,Travel & Subsistence General Duty,Durham Office,Redfern Travel Ltd,SME,1196040,231.7,Travel & Subsistence,Administration
HM Land Registry,HM Land Registry,24/10/2017,Travel & Subsistence General Duty,Leicester Office,Redfern Travel Ltd,SME,1195408,235.1,Travel & Subsistence,Administration
HM Land Registry,HM Land Registry,24/10/2017,Travel & Subsistence General Duty,Internal Audit,Redfern Travel Ltd,SME,1195407,237.69,Travel & Subsistence,Administration
HM Land Registry,HM Land Registry,31/10/2017,Travel & Subsistence General Duty,Director of Legal Services,Redfern Travel Ltd,SME,1196040,255.6,Travel & Subsistence,Administration
HM Land Registry,HM Land Registry,24/10/2017,Travel & Subsistence General Duty,Wales Office,Redfern Travel Ltd,SME,1195447,259.18,Travel & Subsistence,Administration
HM Land Registry,HM Land Registry,24/10/2017,Travel & Subsistence General Duty,Fylde Office,Redfern Travel Ltd,SME,1195447,259.6,Travel & Subsistence,Administration
HM Land Registry,HM Land Registry,24/10/2017,Travel & Subsistence General Duty,Product Development & Management,Redfern Travel Ltd,SME,1195447,260.02,Travel & Subsistence,Administration
HM Land Registry,HM Land Registry,24/10/2017,Travel & Subsistence General Duty,Coventry Office,Redfern Travel Ltd,SME,1195408,260.2,Travel & Subsistence,Administration
HM Land Registry,HM Land Registry,24/10/2017,Travel & Subsistence General Duty,Local Lawyer Support Group,Redfern Travel Ltd,SME,1195447,264.1,Travel & Subsistence,Administration
HM Land Registry,HM Land Registry,24/10/2017,Travel & Subsistence General Duty,Nottingham Office,Redfern Travel Ltd,SME,1195447,266.2,Travel & Subsistence,Administration
HM Land Registry,HM Land Registry,24/10/2017,Travel & Subsistence General Duty,Director of Operations,Redfern Travel Ltd,SME,1195408,268.6,Travel & Subsistence,Administration
HM Land Registry,HM Land Registry,24/10/2017,Travel & Subsistence General Duty,Dir: Operations,Redfern Travel Ltd,SME,1195407,271.6,Travel & Subsistence,Administration
HM Land Registry,HM Land Registry,24/10/2017,Travel & Subsistence General Duty,Coventry Office,Redfern Travel Ltd,SME,1195409,273.1,Travel & Subsistence,Administration
HM Land Registry,HM Land Registry,24/10/2017,Travel & Subsistence General Duty,Central Operations Group,Redfern Travel Ltd,SME,1195407,279.5,Travel & Subsistence,Administration
HM Land Registry,HM Land Registry,24/10/2017,Travel & Subsistence General Duty,LR Sports Council,Redfern Travel Ltd,SME,1195447,283.4,Travel & Subsistence,Administration
HM Land Registry,HM Land Registry,24/10/2017,Travel & Subsistence General Duty,Plymouth Office,Redfern Travel Ltd,SME,1195407,286,Travel & Subsistence,Administration
HM Land Registry,HM Land Registry,24/10/2017,Travel & Subsistence General Duty,Gloucester Office,Redfern Travel Ltd,SME,1195409,288.8,Travel & Subsistence,Administration
HM Land Registry,HM Land Registry,24/10/2017,Travel & Subsistence General Duty,Weymouth Office,Redfern Travel Ltd,SME,1195447,289,Travel & Subsistence,Administration
HM Land Registry,HM Land Registry,24/10/2017,Travel & Subsistence General Duty,Property Asset Management Group,Redfern Travel Ltd,SME,1195408,296.9,Travel & Subsistence,Administration
HM Land Registry,HM Land Registry,24/10/2017,Travel & Subsistence General Duty,Finance Director,Redfern Travel Ltd,SME,1195409,298.13,Travel & Subsistence,Administration
HM Land Registry,HM Land Registry,24/10/2017,Travel & Subsistence General Duty,International Business Development,Redfern Travel Ltd,SME,1195447,305.5,Travel & Subsistence,Administration
HM Land Registry,HM Land Registry,24/10/2017,Travel & Subsistence General Duty,Wales Office,Redfern Travel Ltd,SME,1195407,311.6,Travel & Subsistence,Administration
HM Land Registry,HM Land Registry,24/10/2017,Travel & Subsistence General Duty,Gloucester Office,Redfern Travel Ltd,SME,1195408,314.2,Travel & Subsistence,Administration
HM Land Registry,HM Land Registry,24/10/2017,Travel & Subsistence General Duty,Product Development & Management,Redfern Travel Ltd,SME,1195408,336.18,Travel & Subsistence,Administration
HM Land Registry,HM Land Registry,24/10/2017,Travel & Subsistence General Duty,Operations Assurance and Risk,Redfern Travel Ltd,SME,1195407,342.55,Travel & Subsistence,Administration
HM Land Registry,HM Land Registry,31/10/2017,Travel & Subsistence General Duty,IS Service Delivery,Redfern Travel Ltd,SME,1196040,349.4,Travel & Subsistence,Administration
HM Land Registry,HM Land Registry,24/10/2017,Travel & Subsistence General Duty,Director of Operations,Redfern Travel Ltd,SME,1195409,349.89,Travel & Subsistence,Administration
HM Land Registry,HM Land Registry,24/10/2017,Travel & Subsistence General Duty,Hull Office,Redfern Travel Ltd,SME,1195408,355.7,Travel & Subsistence,Administration
HM Land Registry,HM Land Registry,24/10/2017,Travel & Subsistence General Duty,Property Asset Management Group,Redfern Travel Ltd,SME,1195447,357.9,Travel & Subsistence,Administration
HM Land Registry,HM Land Registry,24/10/2017,Travel & Subsistence General Duty,Research & Data Mining,Redfern Travel Ltd,SME,1195407,359.93,Travel & Subsistence,Administration
HM Land Registry,HM Land Registry,24/10/2017,Travel & Subsistence General Duty,Central Operations Group,Redfern Travel Ltd,SME,1195408,365,Travel & Subsistence,Administration
HM Land Registry,HM Land Registry,31/10/2017,Travel & Subsistence General Duty,LR Sports Council,Redfern Travel Ltd,SME,1196040,371.4,Travel & Subsistence,Administration
HM Land Registry,HM Land Registry,24/10/2017,Travel & Subsistence General Duty,Hull Office,Redfern Travel Ltd,SME,1195409,371.8,Travel & Subsistence,Administration
HM Land Registry,HM Land Registry,31/10/2017,Travel & Subsistence General Duty,Business Development,Redfern Travel Ltd,SME,1196040,381.9,Travel & Subsistence,Administration
HM Land Registry,HM Land Registry,24/10/2017,Travel & Subsistence General Duty,Research & Data Mining,Redfern Travel Ltd,SME,1195409,382.9,Travel & Subsistence,Administration
HM Land Registry,HM Land Registry,31/10/2017,Travel & Subsistence General Duty,Coventry Office,Redfern Travel Ltd,SME,1196040,391.8,Travel & Subsistence,Administration
HM Land Registry,HM Land Registry,24/10/2017,Travel & Subsistence General Duty,Corporate Legal Services,Redfern Travel Ltd,SME,1195407,405.62,Travel & Subsistence,Administration
HM Land Registry,HM Land Registry,24/10/2017,Travel & Subsistence General Duty,Corporate Legal Services,Redfern Travel Ltd,SME,1195408,439.25,Travel & Subsistence,Administration
HM Land Registry,HM Land Registry,24/10/2017,Travel & Subsistence General Duty,Property Asset Management Group,Redfern Travel Ltd,SME,1195409,447.62,Travel & Subsistence,Administration
HM Land Registry,HM Land Registry,24/10/2017,Travel & Subsistence General Duty,Wales Office,Redfern Travel Ltd,SME,1195409,458.2,Travel & Subsistence,Administration
HM Land Registry,HM Land Registry,24/10/2017,Travel & Subsistence General Duty,Gloucester Office,Redfern Travel Ltd,SME,1195407,469,Travel & Subsistence,Administration
HM Land Registry,HM Land Registry,24/10/2017,Travel & Subsistence General Duty,Chief Executives Office,Redfern Travel Ltd,SME,1195447,474.25,Travel & Subsistence,Administration
HM Land Registry,HM Land Registry,24/10/2017,Travel & Subsistence General Duty,Commercial Director,Redfern Travel Ltd,SME,1195447,478.4,Travel & Subsistence,Administration
HM Land Registry,HM Land Registry,24/10/2017,Travel & Subsistence General Duty,Research & Data Mining,Redfern Travel Ltd,SME,1195408,487,Travel & Subsistence,Administration
HM Land Registry,HM Land Registry,24/10/2017,Travel & Subsistence General Duty,Coventry Office,Redfern Travel Ltd,SME,1195407,502,Travel & Subsistence,Administration
HM Land Registry,HM Land Registry,24/10/2017,Travel & Subsistence General Duty,Central Operations Group,Redfern Travel Ltd,SME,1195447,503.95,Travel & Subsistence,Administration
HM Land Registry,HM Land Registry,31/10/2017,Travel & Subsistence General Duty,Corp Procurement,Redfern Travel Ltd,SME,1196040,522.98,Travel & Subsistence,Administration
HM Land Registry,HM Land Registry,24/10/2017,Travel & Subsistence General Duty,Communications Team,Redfern Travel Ltd,SME,1195407,531.99,Travel & Subsistence,Administration
HM Land Registry,HM Land Registry,24/10/2017,Travel & Subsistence General Duty,Birkenhead Office,Redfern Travel Ltd,SME,1195407,535.32,Travel & Subsistence,Administration
HM Land Registry,HM Land Registry,24/10/2017,Assets in the Course of Construction,Balance Sheet,Redfern Travel Ltd,SME,1195447,540.82,Assets in the Course of Construction,Administration
HM Land Registry,HM Land Registry,31/10/2017,Travel & Subsistence General Duty,Chief Executives Office,Redfern Travel Ltd,SME,1196040,549,Travel & Subsistence,Administration
HM Land Registry,HM Land Registry,24/10/2017,Travel & Subsistence General Duty,Central Facilities Management Team,Redfern Travel Ltd,SME,1195447,557.8,Travel & Subsistence,Administration
HM Land Registry,HM Land Registry,31/10/2017,Travel & Subsistence General Duty,Central Facilities Management Team,Redfern Travel Ltd,SME,1196040,558.45,Travel & Subsistence,Administration
HM Land Registry,HM Land Registry,24/10/2017,Travel & Subsistence General Duty,Strategy Team,Redfern Travel Ltd,SME,1195408,576.03,Travel & Subsistence,Administration
HM Land Registry,HM Land Registry,31/10/2017,Travel & Subsistence General Duty,Central Operations Group,Redfern Travel Ltd,SME,1196040,578.9,Travel & Subsistence,Administration
HM Land Registry,HM Land Registry,31/10/2017,Travel & Subsistence General Duty,Customer Services,Redfern Travel Ltd,SME,1196040,580,Travel & Subsistence,Administration
HM Land Registry,HM Land Registry,24/10/2017,Travel & Subsistence General Duty,Central Operations Group,Redfern Travel Ltd,SME,1195409,589.4,Travel & Subsistence,Administration
HM Land Registry,HM Land Registry,24/10/2017,Travel & Subsistence General Duty,Fylde Office,Redfern Travel Ltd,SME,1195407,598.3,Travel & Subsistence,Administration
HM Land Registry,HM Land Registry,24/10/2017,Travel & Subsistence General Duty,Commercial Director,Redfern Travel Ltd,SME,1195408,626.65,Travel & Subsistence,Administration
HM Land Registry,HM Land Registry,24/10/2017,Travel & Subsistence General Duty,Communications Team,Redfern Travel Ltd,SME,1195408,631.18,Travel & Subsistence,Administration
HM Land Registry,HM Land Registry,24/10/2017,Travel & Subsistence General Duty,Diversity,Redfern Travel Ltd,SME,1195407,645.3,Travel & Subsistence,Administration
HM Land Registry,HM Land Registry,24/10/2017,Travel & Subsistence General Duty,Customer Services,Redfern Travel Ltd,SME,1195409,650.88,Travel & Subsistence,Administration
HM Land Registry,HM Land Registry,31/10/2017,Travel & Subsistence General Duty,Corporate Legal Services,Redfern Travel Ltd,SME,1196040,658.34,Travel & Subsistence,Administration
HM Land Registry,HM Land Registry,24/10/2017,Travel & Subsistence General Duty,Corporate Legal Services,Redfern Travel Ltd,SME,1195447,663.05,Travel & Subsistence,Administration
HM Land Registry,HM Land Registry,24/10/2017,Travel & Subsistence General Duty,Research & Data Mining,Redfern Travel Ltd,SME,1195447,666.03,Travel & Subsistence,Administration
HM Land Registry,HM Land Registry,24/10/2017,Travel & Subsistence General Duty,Projects and Programme Centre,Redfern Travel Ltd,SME,1195447,666.4,Travel & Subsistence,Administration
HM Land Registry,HM Land Registry,24/10/2017,Travel & Subsistence General Duty,Durham Office,Redfern Travel Ltd,SME,1195447,677.93,Travel & Subsistence,Administration
HM Land Registry,HM Land Registry,24/10/2017,Travel & Subsistence General Duty,Corporate Legal Services,Redfern Travel Ltd,SME,1195409,686,Travel & Subsistence,Administration
HM Land Registry,HM Land Registry,31/10/2017,Travel & Subsistence General Duty,Research & Data Mining,Redfern Travel Ltd,SME,1196040,697.1,Travel & Subsistence,Administration
HM Land Registry,HM Land Registry,31/10/2017,Travel & Subsistence General Duty,Strategy Team,Redfern Travel Ltd,SME,1196040,699.5,Travel & Subsistence,Administration
HM Land Registry,HM Land Registry,24/10/2017,Travel & Subsistence General Duty,Corp Procurement,Redfern Travel Ltd,SME,1195409,702.6,Travel & Subsistence,Administration
HM Land Registry,HM Land Registry,31/10/2017,Travel & Subsistence General Duty,Finance Group,Redfern Travel Ltd,SME,1196040,723.7,Travel & Subsistence,Administration
HM Land Registry,HM Land Registry,24/10/2017,Travel & Subsistence General Duty,Strategy Team,Redfern Travel Ltd,SME,1195407,725.05,Travel & Subsistence,Administration
HM Land Registry,HM Land Registry,24/10/2017,Travel & Subsistence General Duty,Operations Assurance and Risk,Redfern Travel Ltd,SME,1195409,726.3,Travel & Subsistence,Administration
HM Land Registry,HM Land Registry,24/10/2017,Travel & Subsistence General Duty,Wales Office,Redfern Travel Ltd,SME,1195408,727.52,Travel & Subsistence,Administration
HM Land Registry,HM Land Registry,24/10/2017,Travel & Subsistence General Duty,Data Group,Redfern Travel Ltd,SME,1195407,750.1,Travel & Subsistence,Administration
HM Land Registry,HM Land Registry,24/10/2017,Travel & Subsistence General Duty,Chief Executives Office,Redfern Travel Ltd,SME,1195409,807.25,Travel & Subsistence,Administration
HM Land Registry,HM Land Registry,24/10/2017,Travel & Subsistence General Duty,Communications Team,Redfern Travel Ltd,SME,1195447,832.48,Travel & Subsistence,Administration
HM Land Registry,HM Land Registry,24/10/2017,Travel & Subsistence General Duty,Durham Office,Redfern Travel Ltd,SME,1195407,838.98,Travel & Subsistence,Administration
HM Land Registry,HM Land Registry,24/10/2017,Travel & Subsistence General Duty,Chief Executives Office,Redfern Travel Ltd,SME,1195407,840.34,Travel & Subsistence,Administration
HM Land Registry,HM Land Registry,24/10/2017,Travel & Subsistence General Duty,Dir: Finance,Redfern Travel Ltd,SME,1195408,841.21,Travel & Subsistence,Administration
HM Land Registry,HM Land Registry,31/10/2017,Travel & Subsistence General Duty,Dir: Operations,Redfern Travel Ltd,SME,1196040,842.56,Travel & Subsistence,Administration
HM Land Registry,HM Land Registry,24/10/2017,Travel & Subsistence General Duty,Customer Services,Redfern Travel Ltd,SME,1195447,860.65,Travel & Subsistence,Administration
HM Land Registry,HM Land Registry,24/10/2017,Travel & Subsistence General Duty,Communications Team,Redfern Travel Ltd,SME,1195409,865.65,Travel & Subsistence,Administration
HM Land Registry,HM Land Registry,24/10/2017,Travel & Subsistence General Duty,Business Development,Redfern Travel Ltd,SME,1195407,886.49,Travel & Subsistence,Administration
HM Land Registry,HM Land Registry,24/10/2017,Travel & Subsistence General Duty,Business Development,Redfern Travel Ltd,SME,1195447,910.7,Travel & Subsistence,Administration
HM Land Registry,HM Land Registry,24/10/2017,Travel & Subsistence General Duty,Data Group,Redfern Travel Ltd,SME,1195409,921.2,Travel & Subsistence,Administration
HM Land Registry,HM Land Registry,24/10/2017,Travel & Subsistence General Duty,Dir: Finance,Redfern Travel Ltd,SME,1195407,947.6,Travel & Subsistence,Administration
HM Land Registry,HM Land Registry,24/10/2017,Travel & Subsistence General Duty,Dir: Operations,Redfern Travel Ltd,SME,1195409,963.36,Travel & Subsistence,Administration
HM Land Registry,HM Land Registry,31/10/2017,Travel & Subsistence General Duty,Projects and Programme Centre,Redfern Travel Ltd,SME,1196040,967.2,Travel & Subsistence,Administration
HM Land Registry,HM Land Registry,24/10/2017,Travel & Subsistence General Duty,Corp Procurement,Redfern Travel Ltd,SME,1195447,968.75,Travel & Subsistence,Administration
HM Land Registry,HM Land Registry,31/10/2017,Travel & Subsistence General Duty,Local Lawyer Group,Redfern Travel Ltd,SME,1196040,996.35,Travel & Subsistence,Administration
HM Land Registry,HM Land Registry,24/10/2017,Travel & Subsistence General Duty,Central Facilities Management Team,Redfern Travel Ltd,SME,1195409,"1,010.09",Travel & Subsistence,Administration
HM Land Registry,HM Land Registry,24/10/2017,Travel & Subsistence General Duty,Business Development,Redfern Travel Ltd,SME,1195409,"1,012.20",Travel & Subsistence,Administration
HM Land Registry,HM Land Registry,24/10/2017,Travel & Subsistence General Duty,Local Land Charges,Redfern Travel Ltd,SME,1195407,"1,018.15",Travel & Subsistence,Administration
HM Land Registry,HM Land Registry,24/10/2017,Travel & Subsistence General Duty,Central Facilities Management Team,Redfern Travel Ltd,SME,1195407,"1,053.90",Travel & Subsistence,Administration
HM Land Registry,HM Land Registry,24/10/2017,Travel & Subsistence General Duty,Durham Office,Redfern Travel Ltd,SME,1195408,"1,068.60",Travel & Subsistence,Administration
HM Land Registry,HM Land Registry,24/10/2017,Travel & Subsistence General Duty,Central Facilities Management Team,Redfern Travel Ltd,SME,1195408,"1,082.35",Travel & Subsistence,Administration
HM Land Registry,HM Land Registry,24/10/2017,Travel & Subsistence General Duty,Dir: Operations,Redfern Travel Ltd,SME,1195447,"1,092.12",Travel & Subsistence,Administration
HM Land Registry,HM Land Registry,24/10/2017,Travel & Subsistence General Duty,Corp Procurement,Redfern Travel Ltd,SME,1195408,"1,102.20",Travel & Subsistence,Administration
HM Land Registry,HM Land Registry,24/10/2017,Travel & Subsistence General Duty,Strategy Team,Redfern Travel Ltd,SME,1195409,"1,125.98",Travel & Subsistence,Administration
HM Land Registry,HM Land Registry,24/10/2017,Travel & Subsistence General Duty,Dir: (Statutory) Digital Services,Redfern Travel Ltd,SME,1195447,"1,167.10",Travel & Subsistence,Administration
HM Land Registry,HM Land Registry,24/10/2017,Travel & Subsistence General Duty,Chief Executives Office,Redfern Travel Ltd,SME,1195408,"1,170.69",Travel & Subsistence,Administration
HM Land Registry,HM Land Registry,24/10/2017,Travel & Subsistence General Duty,Local Lawyer Group,Redfern Travel Ltd,SME,1195407,"1,189.30",Travel & Subsistence,Administration
HM Land Registry,HM Land Registry,24/10/2017,Travel & Subsistence General Duty,Local Lawyer Group,Redfern Travel Ltd,SME,1195408,"1,288.15",Travel & Subsistence,Administration
HM Land Registry,HM Land Registry,31/10/2017,Travel & Subsistence General Duty,Data Group,Redfern Travel Ltd,SME,1196040,"1,316.40",Travel & Subsistence,Administration
HM Land Registry,HM Land Registry,24/10/2017,Travel & Subsistence General Duty,Customer Services,Redfern Travel Ltd,SME,1195407,"1,331.86",Travel & Subsistence,Administration
HM Land Registry,HM Land Registry,24/10/2017,Travel & Subsistence General Duty,Projects and Programme Centre,Redfern Travel Ltd,SME,1195409,"1,369.20",Travel & Subsistence,Administration
HM Land Registry,HM Land Registry,24/10/2017,Travel & Subsistence General Duty,Projects and Programme Centre,Redfern Travel Ltd,SME,1195407,"1,442.40",Travel & Subsistence,Administration
HM Land Registry,HM Land Registry,24/10/2017,Travel & Subsistence General Duty,Local Lawyer Group,Redfern Travel Ltd,SME,1195447,"1,479.70",Travel & Subsistence,Administration
HM Land Registry,HM Land Registry,24/10/2017,Travel & Subsistence General Duty,Local Lawyer Support Group,Redfern Travel Ltd,SME,1195407,"1,508.00",Travel & Subsistence,Administration
HM Land Registry,HM Land Registry,31/10/2017,Travel & Subsistence General Duty,Dir: Finance,Redfern Travel Ltd,SME,1196040,"1,518.69",Travel & Subsistence,Administration
HM Land Registry,HM Land Registry,24/10/2017,Travel & Subsistence General Duty,Data Group,Redfern Travel Ltd,SME,1195408,"1,532.60",Travel & Subsistence,Administration
HM Land Registry,HM Land Registry,24/10/2017,Travel & Subsistence General Duty,Customer Services,Redfern Travel Ltd,SME,1195408,"1,550.08",Travel & Subsistence,Administration
HM Land Registry,HM Land Registry,31/10/2017,Travel & Subsistence General Duty,Local Land Charges,Redfern Travel Ltd,SME,1196040,"1,584.03",Travel & Subsistence,Administration
HM Land Registry,HM Land Registry,24/10/2017,Travel & Subsistence General Duty,Product Development & Management,Redfern Travel Ltd,SME,1195407,"1,592.50",Travel & Subsistence,Administration
HM Land Registry,HM Land Registry,24/10/2017,Travel & Subsistence General Duty,Projects and Programme Centre,Redfern Travel Ltd,SME,1195408,"1,637.09",Travel & Subsistence,Administration
HM Land Registry,HM Land Registry,24/10/2017,Travel & Subsistence General Duty,Dir: Finance,Redfern Travel Ltd,SME,1195409,"1,688.10",Travel & Subsistence,Administration
HM Land Registry,HM Land Registry,24/10/2017,Travel & Subsistence General Duty,Data Group,Redfern Travel Ltd,SME,1195447,"1,724.00",Travel & Subsistence,Administration
HM Land Registry,HM Land Registry,24/10/2017,Travel & Subsistence General Duty,Director of Information Systems,Redfern Travel Ltd,SME,1195408,"1,771.15",Travel & Subsistence,Administration
HM Land Registry,HM Land Registry,24/10/2017,Travel & Subsistence General Duty,Director of Information Systems,Redfern Travel Ltd,SME,1195447,"1,833.93",Travel & Subsistence,Administration
HM Land Registry,HM Land Registry,24/10/2017,Travel & Subsistence General Duty,Program: Local Land Charges,Redfern Travel Ltd,SME,1195407,"1,883.40",Travel & Subsistence,Administration
HM Land Registry,HM Land Registry,24/10/2017,Travel & Subsistence General Duty,Product Development & Management,Redfern Travel Ltd,SME,1195409,"1,923.70",Travel & Subsistence,Administration
HM Land Registry,HM Land Registry,24/10/2017,Travel & Subsistence General Duty,Local Land Charges,Redfern Travel Ltd,SME,1195408,"1,997.47",Travel & Subsistence,Administration
HM Land Registry,HM Land Registry,31/10/2017,Travel & Subsistence General Duty,Director of Information Systems,Redfern Travel Ltd,SME,1196040,"1,998.21",Travel & Subsistence,Administration
HM Land Registry,HM Land Registry,31/10/2017,Travel & Subsistence General Duty,Product Development & Management,Redfern Travel Ltd,SME,1196040,"2,003.20",Travel & Subsistence,Administration
HM Land Registry,HM Land Registry,24/10/2017,Travel & Subsistence General Duty,Dir: (Statutory) Digital Services,Redfern Travel Ltd,SME,1195407,"2,050.78",Travel & Subsistence,Administration
HM Land Registry,HM Land Registry,24/10/2017,Travel & Subsistence General Duty,Local Land Charges,Redfern Travel Ltd,SME,1195409,"2,062.92",Travel & Subsistence,Administration
HM Land Registry,HM Land Registry,24/10/2017,Travel & Subsistence General Duty,Dir: Operations,Redfern Travel Ltd,SME,1195408,"2,098.76",Travel & Subsistence,Administration
HM Land Registry,HM Land Registry,24/10/2017,Travel & Subsistence General Duty,Dir: Finance,Redfern Travel Ltd,SME,1195447,"2,147.74",Travel & Subsistence,Administration
HM Land Registry,HM Land Registry,24/10/2017,Travel & Subsistence General Duty,Program: Local Land Charges,Redfern Travel Ltd,SME,1195408,"2,249.73",Travel & Subsistence,Administration
HM Land Registry,HM Land Registry,31/10/2017,Travel & Subsistence General Duty,HR Group,Redfern Travel Ltd,SME,1196040,"2,288.44",Travel & Subsistence,Administration
HM Land Registry,HM Land Registry,24/10/2017,Travel & Subsistence General Duty,Local Land Charges,Redfern Travel Ltd,SME,1195447,"2,395.10",Travel & Subsistence,Administration
HM Land Registry,HM Land Registry,24/10/2017,Travel & Subsistence General Duty,HR Group,Redfern Travel Ltd,SME,1195407,"2,436.58",Travel & Subsistence,Administration
HM Land Registry,HM Land Registry,31/10/2017,Travel & Subsistence General Duty,Dir: (Statutory) Digital Services,Redfern Travel Ltd,SME,1196040,"2,525.92",Travel & Subsistence,Administration
HM Land Registry,HM Land Registry,24/10/2017,Travel & Subsistence General Duty,Program: Local Land Charges,Redfern Travel Ltd,SME,1195409,"2,674.37",Travel & Subsistence,Administration
HM Land Registry,HM Land Registry,24/10/2017,Travel & Subsistence General Duty,Dir: (Statutory) Digital Services,Redfern Travel Ltd,SME,1195409,"2,846.26",Travel & Subsistence,Administration
HM Land Registry,HM Land Registry,24/10/2017,Travel & Subsistence General Duty,HR Group,Redfern Travel Ltd,SME,1195409,"2,920.37",Travel & Subsistence,Administration
HM Land Registry,HM Land Registry,24/10/2017,Travel & Subsistence General Duty,Director of Information Systems,Redfern Travel Ltd,SME,1195407,"3,119.55",Travel & Subsistence,Administration
HM Land Registry,HM Land Registry,24/10/2017,Travel & Subsistence General Duty,Program: Local Land Charges,Redfern Travel Ltd,SME,1195447,"3,378.45",Travel & Subsistence,Administration
HM Land Registry,HM Land Registry,31/10/2017,Travel & Subsistence General Duty,Program: Local Land Charges,Redfern Travel Ltd,SME,1196040,"3,493.38",Travel & Subsistence,Administration
HM Land Registry,HM Land Registry,24/10/2017,Travel & Subsistence General Duty,Dir: (Statutory) Digital Services,Redfern Travel Ltd,SME,1195408,"3,577.59",Travel & Subsistence,Administration
HM Land Registry,HM Land Registry,24/10/2017,Travel & Subsistence General Duty,Director of Information Systems,Redfern Travel Ltd,SME,1195409,"3,611.22",Travel & Subsistence,Administration
HM Land Registry,HM Land Registry,24/10/2017,Travel & Subsistence General Duty,HR Group,Redfern Travel Ltd,SME,1195408,"4,178.47",Travel & Subsistence,Administration
HM Land Registry,HM Land Registry,24/10/2017,Travel & Subsistence General Duty,HR Group,Redfern Travel Ltd,SME,1195447,"4,268.46",Travel & Subsistence,Administration
HM Land Registry,HM Land Registry,24/10/2017,Travel & Subsistence General Duty,Local Lawyer Group,Redfern Travel Ltd,SME,1195409,"4,889.85",Travel & Subsistence,Administration
HM Land Registry,HM Land Registry,16/10/2017,Letter Post,Coventry Office,Royal Mail,Large,1194719,"-1,384.67",Letter Post,Administration
HM Land Registry,HM Land Registry,16/10/2017,Letter Post,Telford Office,Royal Mail,Large,1194719,792.87,Letter Post,Administration
HM Land Registry,HM Land Registry,16/10/2017,Letter Post,Land Charges,Royal Mail,Large,1194719,817.63,Letter Post,Administration
HM Land Registry,HM Land Registry,16/10/2017,Letter Post,Leicester Office,Royal Mail,Large,1194719,"1,335.25",Letter Post,Administration
HM Land Registry,HM Land Registry,16/10/2017,Letter Post,Gloucester Office,Royal Mail,Large,1194719,"1,539.02",Letter Post,Administration
HM Land Registry,HM Land Registry,16/10/2017,Letter Post,Birkenhead Office,Royal Mail,Large,1194719,"1,643.60",Letter Post,Administration
HM Land Registry,HM Land Registry,16/10/2017,Letter Post,Weymouth Office,Royal Mail,Large,1194719,"1,707.65",Letter Post,Administration
HM Land Registry,HM Land Registry,16/10/2017,Letter Post,Nottingham Office,Royal Mail,Large,1194719,"1,928.94",Letter Post,Administration
HM Land Registry,HM Land Registry,16/10/2017,Letter Post,Fylde Office,Royal Mail,Large,1194719,"1,961.00",Letter Post,Administration
HM Land Registry,HM Land Registry,16/10/2017,Letter Post,Peterborough Office,Royal Mail,Large,1194719,"2,155.64",Letter Post,Administration
HM Land Registry,HM Land Registry,16/10/2017,Letter Post,Plymouth Office,Royal Mail,Large,1194719,"2,452.88",Letter Post,Administration
HM Land Registry,HM Land Registry,16/10/2017,Letter Post,Hull Office,Royal Mail,Large,1194719,"3,009.81",Letter Post,Administration
HM Land Registry,HM Land Registry,16/10/2017,Letter Post,Croydon Office,Royal Mail,Large,1194719,"4,243.01",Letter Post,Administration
HM Land Registry,HM Land Registry,16/10/2017,Letter Post,Durham Office,Royal Mail,Large,1194719,"5,037.31",Letter Post,Administration
HM Land Registry,HM Land Registry,16/10/2017,Letter Post,Wales Office,Royal Mail,Large,1194719,"12,438.05",Letter Post,Administration
HM Land Registry,HM Land Registry,16/10/2017,Letter Post,IS Service Delivery,Royal Mail,Large,1194719,"20,614.22",Letter Post,Administration
HM Land Registry,HM Land Registry,27/10/2017,Rates Payable,Director of Information Systems,South Hams District Council,Large,1175824,"4,503.00",Rates Payable,Administration
HM Land Registry,HM Land Registry,27/10/2017,Rates Payable,Director of Information Systems,South Hams District Council,Large,1175825,"7,837.00",Rates Payable,Administration
HM Land Registry,HM Land Registry,27/10/2017,Rates Payable,Telford Office,Telford & Wrekin Council,Large,1176072,"26,106.00",Rates Payable,Administration
HM Land Registry,HM Land Registry,27/10/2017,Rates Payable,Gloucester Computer Centre,Tewkesbury Borough Council,Large,1174831,"11,615.00",Rates Payable,Administration
HM Land Registry,HM Land Registry,11/10/2017,RFS Outsourced Services,Central RFS,TNT (UK) Ltd,Large,1194156,"74,631.96",Regional File Store Outsourced Services,Administration
HM Land Registry,HM Land Registry,11/10/2017,RFS Outsourced Services,Central RFS,TNT (UK) Ltd,Large,1194300,"91,592.33",Regional File Store Outsourced Services,Administration
HM Land Registry,HM Land Registry,11/10/2017,RFS Outsourced Services,Central RFS,TNT (UK) Ltd,Large,1194301,"94,526.83",Regional File Store Outsourced Services,Administration
HM Land Registry,HM Land Registry,19/10/2017,RFS Outsourced Services,Central RFS,TNT (UK) Ltd,Large,1194845,"94,541.16",Regional File Store Outsourced Services,Administration
HM Land Registry,HM Land Registry,11/10/2017,RFS Outsourced Services,Central RFS,TNT (UK) Ltd,Large,1194158,"192,043.16",Regional File Store Outsourced Services,Administration
HM Land Registry,HM Land Registry,11/10/2017,RFS Outsourced Services,Central RFS,TNT (UK) Ltd,Large,1194157,"192,043.16",Regional File Store Outsourced Services,Administration
HM Land Registry,HM Land Registry,11/10/2017,RFS Outsourced Services,Central RFS,TNT (UK) Ltd,Large,1194299,"192,043.16",Regional File Store Outsourced Services,Administration
HM Land Registry,HM Land Registry,19/10/2017,RFS Outsourced Services,Central RFS,TNT (UK) Ltd,Large,1194851,"192,043.16",Regional File Store Outsourced Services,Administration
HM Land Registry,HM Land Registry,06/10/2017,Professional Services,Dir: (Statutory) Digital Services,Viewdeck Consulting Ltd,Large,1193315,"28,776.00",Professional Services,Administration
HM Land Registry,HM Land Registry,05/10/2017,Rates Payable,Weymouth Office,West Dorset District Council,Large,1176979,"4,093.00",Rates Payable,Administration
HM Land Registry,HM Land Registry,02/10/2017,Rates Payable,Birkenhead Office,Wirral Council,Large,1176876,"27,484.00",Rates Payable,Administration
HM Land Registry,HM Land Registry,06/10/2017,Maps & Plans Data Migration,Forward Scanning,Xerox (UK) Ltd,Large,1193894,"114,476.76",Maps & Plans Data Migration,Administration
HM Land Registry,HM Land Registry,05/10/2017,Professional Services,Dir: Information Systems,XMA Limited,Large,1193468,"46,463.98",Professional Services,Administration
